Workbook

Sheet Input
A1: Input Diameter | E1: ="Farm: "&FarmName&" Block: "&BlockName -> Farm: Wittenbach Block: Gala
A2: Data could be pasted into this sheet and the macro will copy it into staging sheet. | J2: =YEAR(NOW()) -> 2016
A3: Tree | B3: Cluster | C3: Flower | D3: =+Setup!A5 -> 2015-05-18 | E3: =+Setup!A6 -> 2015-05-21 | F3: =+Setup!A7 -> 2015-05-25 | G3: =+Setup!A8 -> 2015-05-28 | H3: =+Setup!A9 -> 2015-05-31 | I3: =+Setup!A10 -> 2015-06-03 | J3: =+Setup!A11 -> 2015-06-06
A4: 1 | B4: 1 | C4: 1 | D4: 4.85 | E4: 5.76 | F4: 8.19 | G4: 12.51
A5: 1 | C5: 2 | D5: 3 | E5: 2.99
A6: 1 | C6: 3 | D6: 2.57 | E6: 3
A7: 1 | C7: 4 | D7: 2.61 | E7: 2.6
A8: 1 | C8: 5 | D8: 2.21 | E8: 1.89
A9: 1
A10: 1 | B10: 2 | C10: 1 | D10: 2.43 | E10: 2.08
A11: 1 | C11: 2 | D11: 2.21 | E11: 2.74
A12: 1 | C12: 3 | D12: 2.39 | E12: 2.1 | F12: 1.78
A13: 1 | C13: 4 | D13: 2.04 | E13: 2.17
A14: 1 | C14: 5 | D14: 2.49 | E14: 2.59
A15: 1
A16: 1 | B16: 3 | C16: 1 | D16: 4.34 | E16: 5.3 | F16: 6.96 | G16: 10.38
A17: 1 | C17: 2 | D17: 2.9 | E17: 2.81 | F17: 2.49
A18: 1 | C18: 3 | D18: 2.8 | E18: 2.63 | F18: 2.5
A19: 1 | C19: 4 | D19: 3.05 | E19: 3.36
A20: 1 | C20: 5 | D20: 2.98 | E20: 3.43 | F20: 2.9
A21: 1
A22: 1 | B22: 4 | C22: 1 | D22: 3.76 | E22: 4.51 | F22: 5.45 | G22: 7.42
A23: 1 | C23: 2 | D23: 2.72 | E23: 3.17 | F23: 3.27
A24: 1 | C24: 3 | D24: 2.93 | E24: 2.75 | F24: 3.02
A25: 1 | C25: 4 | D25: 2.7 | E25: 2.16 | F25: 2.75
A26: 1 | C26: 5 | D26: 2.93 | E26: 3.37 | F26: 3.27
A27: 1 | C27: 6 | D27: 3.28 | E27: 3.16 | F27: 2.83
A28: 1
A29: 1 | B29: 5 | C29: 1 | D29: 2.34
A30: 1 | C30: 2 | D30: 2.99 | E30: 3.27
A31: 1 | C31: 3 | D31: 2.78 | E31: 2.76
A32: 1 | C32: 4 | D32: 2.87 | E32: 3.22 | F32: 2.79
A33: 1 | C33: 5 | D33: 2.78 | E33: 3.02
A34: 1
A35: 1 | B35: 6 | C35: 1 | D35: 3.14 | E35: 3.45 | F35: 3.24
A36: 1 | C36: 2 | D36: 2.63 | E36: 2.63 | F36: 2.84
A37: 1 | C37: 3 | D37: 3 | E37: 2.7 | F37: 3.09
A38: 1 | C38: 4 | D38: 2.41 | E38: 3.2 | F38: 1.86
A39: 1 | C39: 5 | D39: 2.63 | E39: 2.84 | F39: 2.61
A40: 1 | C40: 6 | D40: 2.56 | E40: 3.14 | F40: 2.36
A41: 1
A42: 1 | B42: 7 | C42: 1 | D42: 3.87 | E42: 3.63 | F42: 3.45
A43: 1 | C43: 2 | D43: 2.67 | E43: 3.39 | F43: 2.96
A44: 1 | C44: 3 | D44: 2.49 | E44: 2.84 | F44: 3.02
A45: 1 | C45: 4 | D45: 3.04 | E45: 3.57 | F45: 4.95 | G45: 8.02
A46: 1 | C46: 5 | D46: 2.79 | E46: 2.99 | F46: 2.62
A47: 1 | C47: 6 | D47: 2.87 | E47: 3 | F47: 2.56
A48: 1
A49: 1 | B49: 8 | C49: 1 | D49: 2.86 | E49: 2.89 | F49: 2.73
A50: 1 | C50: 2 | D50: 2.53 | E50: 2.83 | F50: 3.72 | G50: 6.31
A51: 1 | C51: 3 | D51: 2.13 | E51: 2.72 | F51: 1.86
A52: 1
A53: 1 | B53: 9 | C53: 1 | D53: 2.88 | E53: 3.08 | F53: 2.55
A54: 1 | C54: 2 | D54: 3.73 | E54: 3.97 | F54: 5.19 | G54: 7.99
A55: 1 | C55: 3 | D55: 2.96 | E55: 3.15 | F55: 2.82
A56: 1 | C56: 4 | D56: 3.1 | E56: 3.32 | F56: 3.04
A57: 1 | C57: 5 | D57: 3.21 | E57: 3.33 | F57: 3.01
A58: 1
A59: 1 | B59: 10 | C59: 1 | D59: 2.82 | E59: 3.08
A60: 1 | C60: 2 | D60: 3.26 | E60: 3.99 | F60: 4.81 | G60: 7.99
A61: 1 | C61: 3 | D61: 2.69 | E61: 2.92
A62: 1 | C62: 4 | D62: 3.24 | E62: 3.72 | F62: 5.11 | G62: 8.04
A63: 1 | C63: 5 | D63: 2.89 | E63: 3.22
A64: 1
A65: 1 | B65: 11 | C65: 1 | D65: 3.67 | E65: 4.7 | F65: 5.87 | G65: 9.07
A66: 1 | C66: 2 | D66: 3.04 | E66: 3.54 | F66: 4.38 | G66: 4.42
A67: 1 | C67: 3 | D67: 2.64 | E67: 2.49
A68: 1 | C68: 4 | D68: 3.29 | E68: 4.08 | F68: 5.43 | G68: 8.11
A69: 1 | C69: 5 | D69: 2.96 | E69: 3.45 | F69: 4.24 | G69: 4.13
A70: 1
A71: 1 | B71: 12 | C71: 1 | D71: 2.79
A72: 1 | C72: 2 | D72: 2.7 | E72: 2.77
A73: 1 | C73: 3 | D73: 2.64 | E73: 2.74 | F73: 2.05
A74: 1 | C74: 4 | D74: 2.7 | E74: 2.82 | F74: 2.47
A75: 1 | C75: 5 | D75: 2.72 | E75: 2.9 | F75: 2.19
A76: 1
A77: 1 | B77: 13 | C77: 1 | D77: 2.75 | E77: 2.75 | F77: 2.34
A78: 1 | C78: 2 | D78: 2.53 | E78: 2.51 | F78: 2.44
A79: =+A4+1 -> 2 | C79: 3 | D79: 2.82 | E79: 2.87 | F79: 4.23
A80: =+A5+1 -> 2 | C80: 4 | D80: 2.39 | E80: 2.82 | F80: 3.47
A81: 2 | C81: 5 | D81: 2.72 | E81: 2.79 | F81: 2.34
A82: 2
A83: 2 | B83: 14 | C83: 1 | D83: 3.16 | E83: 3.21 | F83: 3.04
A84: 2 | C84: 2 | D84: 2.8 | E84: 3.05
A85: 2 | C85: 3 | D85: 3.1 | E85: 3.05 | F85: 2.87
A86: 2
A87: 2 | B87: 15 | C87: 1 | D87: 4.22 | E87: 4.83 | F87: 6.07 | G87: 9.31
A88: 2 | C88: 2 | D88: 3.82 | E88: 4.1 | F88: 5.43 | G88: 8.14
A89: 2 | C89: 3 | D89: 2.8 | E89: 3.21 | F89: 2.98
A90: 2 | C90: 4 | D90: 3.1 | E90: 3.11 | F90: 2.7
A91: 2 | C91: 5 | D91: 3.32 | E91: 3.66 | F91: 3.77 | G91: 3.89
A92: 2 | C92: 6 | D92: 3.22 | E92: 3.21
A93: 2
A94: 2
A95: 2
A96: 2
A97: 2
A98: 2
A99: 2
A100: 2
A101: 2
A102: 2
A103: 2
A104: 2
A105: 2
A106: 2
A107: 2
A108: 2
A109: 2
A110: 2
A111: 2
A112: 2
A113: 2
A114: 2
A115: 2
A116: 2
A117: 2
A118: 2
A119: 2
A120: 2
A121: 2
A122: 2
A123: 2
A124: 2
A125: 2
A126: 2
A127: 2
A128: 2
A129: 2
A130: 2
A131: 2
A132: 2
A133: 2
A134: 2
A135: 2
A136: 2
A137: 2
A138: 2
A139: 2
A140: 2
A141: 2
A142: 2
A143: 2
A144: =+A69+1 -> 2
A145: 2
A146: 2
A147: 2
A148: 2
A149: 2
A150: 2
A151: 2
A152: 2
A153: 2
A154: 3
A155: 3
A156: 3
A157: 3
A158: 3
A159: 3
A160: 3
A161: 3
A162: 3
A163: 3
A164: 3
A165: 3
A166: 3
A167: 3
A168: 3
A169: 3
A170: 3
A171: 3
A172: 3
A173: 3
A174: 3
A175: 3
A176: 3
A177: 3
A178: 3
A179: 3
A180: 3
A181: 3
A182: 3
A183: 3
A184: 3
A185: 3
A186: 3
A187: 3
A188: 3
A189: 3
A190: 3
A191: 3
A192: 3
A193: 3
A194: 3
A195: 3
A196: 3
A197: 3
A198: 3
A199: 3
A200: 3
... 314 more rows

Sheet Setup
A1: Farm Name | B1: Wittenbach | D1: Enter Farm name
A2: Block Name | B2: Gala | D2: Enter Block Name
A3: Table 1. Sampling Dates | C3: The yellow cells indicate input cells.
A4: Date | B4: Number | C4: Input the sampling dates for your site into Table 1 (yellow area).
A5: 2015-05-18 | B5: 1
A6: =+A5+3 -> 2015-05-21 | B6: 2 | C6: The dates already in the yellow cells are an example for you.
A7: 2015-05-25 | B7: 3
A8: 2015-05-28 | B8: 4 | C8: Input your counted clusters and target fruit number in Table 2.
A9: 2015-05-31 | B9: 5
A10: 2015-06-03 | B10: 6 | C10: The Target Percent Fruitset= Target Number/Total Potential Fruitset
A11: 2015-06-06 | B11: 7
A13: Table 2. Percent Fruitset Target Density
A14: Bloom clusters counted per measured canopy area | D14: 75
A15: Potential number of fruit in measured canopy area | D15: =+D14*5 -> 375
A16: Target number of fruit desired in measured canopy area | D16: 40
A17: Target % fruitset desired in measured canopy area | D17: =INT(+C20/A20*1000)*0.1 -> 10.6
A18: Reference
A19: Total potential fruitset | B19: Potential fruit /cluster | C19: Target Fruit Number | D19: Target Percent Fruitset
A20: =+D14*B20 -> 375 | B20: 5 | C20: =TargetNum -> 40 | D20: =+C20/A20*100 -> 10.66666667
A21: =+D$14*B21 -> 300 | B21: 4 | C21: 40 | D21: 13.33333333
A22: 225 | B22: 3 | C22: 40 | D22: 17.77777778
A23: 150 | B23: 2 | C23: 40 | D23: 26.66666667
A24: 75 | B24: 1 | C24: 40 | D24: 53.33333333
A25: 37.5 | B25: 0.5 | C25: 40 | D25: 106.6666667
A26: 18.75 | B26: 0.25 | C26: 40 | D26: 213.3333333
A27: 7.5 | B27: 0.1 | C27: 40 | D27: 533.3333333

Sheet Summary
A1: Summary Sheet | E1: ="Farm: "&FarmName&" Block: "&BlockName -> Farm: Wittenbach Block: Gala | M1: Predicted Number of Fruit Setting. This area is used to format the numbers used in graphs. It is not printed.
A2: Target Fruit Number | F2: =+TargetNum -> 40 | G2: Target % Fruitset | K2: =TargetSet&"%" -> 10.6%
A3: Sampling | D3: Diameter (mm) | F3: Diameter Growth (mm) | H3: Number of Fruit | K3: Predicted % Setting
A4: Number | B4: Date | C4: Days between sample dates | D4: Mean of 20 largest fruitlets | E4: Mean of all fruitlets | F4: Mean of up to 20 fastest growing fruitlets | G4: 50% fastest growing fruitlets | H4: >50% fastest | I4: <50% fastest | J4: Measured | K4: Based on Original # of Fruit | M4: =+K4 -> Based on Original # of Fruit | N4: Target % Fruitset | O4: Target Fruit Number
A5: 1 | B5: =+Setup!A5 -> 2015-05-18 | C5: 0 | D5: =+Diameter!B5 -> 3.534 | E5: =+Diameter!B6 -> 2.923333333 | J5: =+Diameter!B8 -> 75
A6: 2 | B6: =+Setup!A6 -> 2015-05-21 | C6: =+B6-B5 -> 3 | D6: =+Diameter!C5 -> 3.9905 | E6: =+Diameter!C6 -> 3.165753425 | F6: =+Count!B5 -> 0.638 | G6: =+Count!B6 -> 0.319 | H6: =+Count!B9 -> 26 | I6: =+J6-H6 -> 47 | J6: =+Diameter!C8 -> 73 | K6: =+H6/OMF*100 -> 34.66666667 | M6: =+K6 -> 34.66666667 | N6: =TargetSet -> 10.6 | O6: =TargetNum -> 40
A7: 3 | B7: =+Setup!A7 -> 2015-05-25 | C7: 4 | D7: =+Diameter!D5 -> 4.863 | E7: =+Diameter!D6 -> 3.461296296 | F7: =+Count!C5 -> 1.046 | G7: =+Count!C6 -> 0.523 | H7: =+Count!C9 -> 17 | I7: 37 | J7: =+Diameter!D8 -> 54 | K7: 22.66666667 | M7: 22.66666667 | N7: 10.6 | O7: 40
A8: 4 | B8: =+Setup!A8 -> 2015-05-28 | C8: 3 | D8: =+Diameter!E5 -> 7.715333333 | E8: =+Diameter!E6 -> 7.715333333 | F8: =+Count!D5 -> 2.590714286 | G8: =+Count!D6 -> 1.295357143 | H8: =+Count!D9 -> 12 | I8: 3 | J8: =+Diameter!E8 -> 15 | K8: 16 | M8: 16 | N8: 10.6 | O8: 40
A9: 5 | B9: =+Setup!A9 -> 2015-05-31 | C9: 3 | D9: =+Diameter!F5 ->  | E9: =+Diameter!F6 ->  | F9: =+Count!E5 ->  | G9: =+Count!E6 ->  | H9: =+Count!E9 -> 0 | I9: 0 | J9: =+Diameter!F8 -> 0 | K9: 0 | M9: 0 | N9: 10.6 | O9: 40
A10: 6 | B10: =+Setup!A10 -> 2015-06-03 | C10: 3 | D10: =+Diameter!G5 ->  | E10: =+Diameter!G6 ->  | F10: =+Count!F5 ->  | G10: =+Count!F6 ->  | H10: =+Count!F9 -> 0 | I10: 0 | J10: =+Diameter!G8 -> 0 | K10: 0 | M10: 0 | N10: 10.6 | O10: 40
A11: 7 | B11: =+Setup!A11 -> 2015-06-06 | C11: 3 | D11: =+Diameter!H5 ->  | E11: =+Diameter!H6 ->  | F11: =+Count!G5 ->  | G11: =+Count!G6 ->  | H11: =+Count!G9 -> 0 | I11: 0 | J11: =+Diameter!H8 -> 0 | K11: 0 | M11: 0 | N11: 10.6 | O11: 40

Sheet Staging
A1: Staging Sheet
D2: Sampling Dates
A3: Number | B3: Cluster | C3: Flower | D3: =+Summary!B5 -> 2015-05-18 | E3: =+Summary!B6 -> 2015-05-21 | F3: =+Summary!B7 -> 2015-05-25 | G3: =+Summary!B8 -> 2015-05-28 | H3: =+Summary!B9 -> 2015-05-31 | I3: =+Summary!B10 -> 2015-06-03 | J3: =+Summary!B11 -> 2015-06-06
A4: 1 | B4: =+Input!B4 -> 1 | C4: =+Input!C4 -> 1 | D4: =+Input!D4 -> 4.85 | E4: =+Input!E4 -> 5.76 | F4: =+Input!F4 -> 8.19 | G4: =+Input!G4 -> 12.51 | H4: =+Input!H4 -> 0 | I4: =+Input!I4 -> 0 | J4: =+Input!J4 -> 0
A5: 2 | B5: =+Input!B5 -> 0 | C5: =+Input!C5 -> 2 | D5: =+Input!D5 -> 3 | E5: =+Input!E5 -> 2.99 | F5: =+Input!F5 -> 0 | G5: =+Input!G5 -> 0 | H5: =+Input!H5 -> 0 | I5: =+Input!I5 -> 0 | J5: =+Input!J5 -> 0
A6: 3 | B6: =+Input!B6 -> 0 | C6: =+Input!C6 -> 3 | D6: =+Input!D6 -> 2.57 | E6: =+Input!E6 -> 3 | F6: =+Input!F6 -> 0 | G6: =+Input!G6 -> 0 | H6: =+Input!H6 -> 0 | I6: =+Input!I6 -> 0 | J6: =+Input!J6 -> 0
A7: 4 | B7: =+Input!B7 -> 0 | C7: =+Input!C7 -> 4 | D7: =+Input!D7 -> 2.61 | E7: =+Input!E7 -> 2.6 | F7: =+Input!F7 -> 0 | G7: =+Input!G7 -> 0 | H7: =+Input!H7 -> 0 | I7: =+Input!I7 -> 0 | J7: =+Input!J7 -> 0
A8: 5 | B8: =+Input!B8 -> 0 | C8: =+Input!C8 -> 5 | D8: =+Input!D8 -> 2.21 | E8: =+Input!E8 -> 1.89 | F8: =+Input!F8 -> 0 | G8: =+Input!G8 -> 0 | H8: =+Input!H8 -> 0 | I8: =+Input!I8 -> 0 | J8: =+Input!J8 -> 0
A9: 6 | B9: =+Input!B9 -> 0 | C9: =+Input!C9 -> 0 | D9: =+Input!D9 -> 0 | E9: =+Input!E9 -> 0 | F9: =+Input!F9 -> 0 | G9: =+Input!G9 -> 0 | H9: =+Input!H9 -> 0 | I9: =+Input!I9 -> 0 | J9: =+Input!J9 -> 0
A10: 7 | B10: =+Input!B10 -> 2 | C10: =+Input!C10 -> 1 | D10: =+Input!D10 -> 2.43 | E10: =+Input!E10 -> 2.08 | F10: =+Input!F10 -> 0 | G10: =+Input!G10 -> 0 | H10: =+Input!H10 -> 0 | I10: =+Input!I10 -> 0 | J10: =+Input!J10 -> 0
A11: 8 | B11: =+Input!B11 -> 0 | C11: =+Input!C11 -> 2 | D11: =+Input!D11 -> 2.21 | E11: =+Input!E11 -> 2.74 | F11: =+Input!F11 -> 0 | G11: =+Input!G11 -> 0 | H11: =+Input!H11 -> 0 | I11: =+Input!I11 -> 0 | J11: =+Input!J11 -> 0
A12: 9 | B12: =+Input!B12 -> 0 | C12: =+Input!C12 -> 3 | D12: =+Input!D12 -> 2.39 | E12: =+Input!E12 -> 2.1 | F12: =+Input!F12 -> 1.78 | G12: =+Input!G12 -> 0 | H12: =+Input!H12 -> 0 | I12: =+Input!I12 -> 0 | J12: =+Input!J12 -> 0
A13: 10 | B13: =+Input!B13 -> 0 | C13: =+Input!C13 -> 4 | D13: =+Input!D13 -> 2.04 | E13: =+Input!E13 -> 2.17 | F13: =+Input!F13 -> 0 | G13: =+Input!G13 -> 0 | H13: =+Input!H13 -> 0 | I13: =+Input!I13 -> 0 | J13: =+Input!J13 -> 0
A14: 11 | B14: =+Input!B14 -> 0 | C14: =+Input!C14 -> 5 | D14: =+Input!D14 -> 2.49 | E14: =+Input!E14 -> 2.59 | F14: =+Input!F14 -> 0 | G14: =+Input!G14 -> 0 | H14: =+Input!H14 -> 0 | I14: =+Input!I14 -> 0 | J14: =+Input!J14 -> 0
A15: 12 | B15: =+Input!B15 -> 0 | C15: =+Input!C15 -> 0 | D15: =+Input!D15 -> 0 | E15: =+Input!E15 -> 0 | F15: =+Input!F15 -> 0 | G15: =+Input!G15 -> 0 | H15: =+Input!H15 -> 0 | I15: =+Input!I15 -> 0 | J15: =+Input!J15 -> 0
A16: 13 | B16: =+Input!B16 -> 3 | C16: =+Input!C16 -> 1 | D16: =+Input!D16 -> 4.34 | E16: =+Input!E16 -> 5.3 | F16: =+Input!F16 -> 6.96 | G16: =+Input!G16 -> 10.38 | H16: =+Input!H16 -> 0 | I16: =+Input!I16 -> 0 | J16: =+Input!J16 -> 0
A17: 14 | B17: =+Input!B17 -> 0 | C17: =+Input!C17 -> 2 | D17: =+Input!D17 -> 2.9 | E17: =+Input!E17 -> 2.81 | F17: =+Input!F17 -> 2.49 | G17: =+Input!G17 -> 0 | H17: =+Input!H17 -> 0 | I17: =+Input!I17 -> 0 | J17: =+Input!J17 -> 0
A18: 15 | B18: =+Input!B18 -> 0 | C18: =+Input!C18 -> 3 | D18: =+Input!D18 -> 2.8 | E18: =+Input!E18 -> 2.63 | F18: =+Input!F18 -> 2.5 | G18: =+Input!G18 -> 0 | H18: =+Input!H18 -> 0 | I18: =+Input!I18 -> 0 | J18: =+Input!J18 -> 0
A19: 16 | B19: =+Input!B19 -> 0 | C19: =+Input!C19 -> 4 | D19: =+Input!D19 -> 3.05 | E19: =+Input!E19 -> 3.36 | F19: =+Input!F19 -> 0 | G19: =+Input!G19 -> 0 | H19: =+Input!H19 -> 0 | I19: =+Input!I19 -> 0 | J19: =+Input!J19 -> 0
A20: 17 | B20: =+Input!B20 -> 0 | C20: =+Input!C20 -> 5 | D20: =+Input!D20 -> 2.98 | E20: =+Input!E20 -> 3.43 | F20: =+Input!F20 -> 2.9 | G20: =+Input!G20 -> 0 | H20: =+Input!H20 -> 0 | I20: =+Input!I20 -> 0 | J20: =+Input!J20 -> 0
A21: 18 | B21: =+Input!B21 -> 0 | C21: =+Input!C21 -> 0 | D21: =+Input!D21 -> 0 | E21: =+Input!E21 -> 0 | F21: =+Input!F21 -> 0 | G21: =+Input!G21 -> 0 | H21: =+Input!H21 -> 0 | I21: =+Input!I21 -> 0 | J21: =+Input!J21 -> 0
A22: 19 | B22: =+Input!B22 -> 4 | C22: =+Input!C22 -> 1 | D22: =+Input!D22 -> 3.76 | E22: =+Input!E22 -> 4.51 | F22: =+Input!F22 -> 5.45 | G22: =+Input!G22 -> 7.42 | H22: =+Input!H22 -> 0 | I22: =+Input!I22 -> 0 | J22: =+Input!J22 -> 0
A23: 20 | B23: =+Input!B23 -> 0 | C23: =+Input!C23 -> 2 | D23: =+Input!D23 -> 2.72 | E23: =+Input!E23 -> 3.17 | F23: =+Input!F23 -> 3.27 | G23: =+Input!G23 -> 0 | H23: =+Input!H23 -> 0 | I23: =+Input!I23 -> 0 | J23: =+Input!J23 -> 0
A24: 21 | B24: =+Input!B24 -> 0 | C24: =+Input!C24 -> 3 | D24: =+Input!D24 -> 2.93 | E24: =+Input!E24 -> 2.75 | F24: =+Input!F24 -> 3.02 | G24: =+Input!G24 -> 0 | H24: =+Input!H24 -> 0 | I24: =+Input!I24 -> 0 | J24: =+Input!J24 -> 0
A25: 22 | B25: =+Input!B25 -> 0 | C25: =+Input!C25 -> 4 | D25: =+Input!D25 -> 2.7 | E25: =+Input!E25 -> 2.16 | F25: =+Input!F25 -> 2.75 | G25: =+Input!G25 -> 0 | H25: =+Input!H25 -> 0 | I25: =+Input!I25 -> 0 | J25: =+Input!J25 -> 0
A26: 23 | B26: =+Input!B26 -> 0 | C26: =+Input!C26 -> 5 | D26: =+Input!D26 -> 2.93 | E26: =+Input!E26 -> 3.37 | F26: =+Input!F26 -> 3.27 | G26: =+Input!G26 -> 0 | H26: =+Input!H26 -> 0 | I26: =+Input!I26 -> 0 | J26: =+Input!J26 -> 0
A27: 24 | B27: =+Input!B27 -> 0 | C27: =+Input!C27 -> 6 | D27: =+Input!D27 -> 3.28 | E27: =+Input!E27 -> 3.16 | F27: =+Input!F27 -> 2.83 | G27: =+Input!G27 -> 0 | H27: =+Input!H27 -> 0 | I27: =+Input!I27 -> 0 | J27: =+Input!J27 -> 0
A28: 25 | B28: =+Input!B28 -> 0 | C28: =+Input!C28 -> 0 | D28: =+Input!D28 -> 0 | E28: =+Input!E28 -> 0 | F28: =+Input!F28 -> 0 | G28: =+Input!G28 -> 0 | H28: =+Input!H28 -> 0 | I28: =+Input!I28 -> 0 | J28: =+Input!J28 -> 0
A29: 26 | B29: =+B4 -> 1 | C29: =+Input!C29 -> 1 | D29: =+Input!D29 -> 2.34 | E29: =+Input!E29 -> 0 | F29: =+Input!F29 -> 0 | G29: =+Input!G29 -> 0 | H29: =+Input!H29 -> 0 | I29: =+Input!I29 -> 0 | J29: =+Input!J29 -> 0
A30: 27 | B30: =+B5 -> 0 | C30: =+Input!C30 -> 2 | D30: =+Input!D30 -> 2.99 | E30: =+Input!E30 -> 3.27 | F30: =+Input!F30 -> 0 | G30: =+Input!G30 -> 0 | H30: =+Input!H30 -> 0 | I30: =+Input!I30 -> 0 | J30: =+Input!J30 -> 0
A31: 28 | B31: 0 | C31: =+Input!C31 -> 3 | D31: =+Input!D31 -> 2.78 | E31: =+Input!E31 -> 2.76 | F31: =+Input!F31 -> 0 | G31: =+Input!G31 -> 0 | H31: =+Input!H31 -> 0 | I31: =+Input!I31 -> 0 | J31: =+Input!J31 -> 0
A32: 29 | B32: 0 | C32: =+Input!C32 -> 4 | D32: =+Input!D32 -> 2.87 | E32: =+Input!E32 -> 3.22 | F32: =+Input!F32 -> 2.79 | G32: =+Input!G32 -> 0 | H32: =+Input!H32 -> 0 | I32: =+Input!I32 -> 0 | J32: =+Input!J32 -> 0
A33: 30 | B33: 0 | C33: =+Input!C33 -> 5 | D33: =+Input!D33 -> 2.78 | E33: =+Input!E33 -> 3.02 | F33: =+Input!F33 -> 0 | G33: =+Input!G33 -> 0 | H33: =+Input!H33 -> 0 | I33: =+Input!I33 -> 0 | J33: =+Input!J33 -> 0
A34: 31 | B34: 0 | C34: =+Input!C34 -> 0 | D34: =+Input!D34 -> 0 | E34: =+Input!E34 -> 0 | F34: =+Input!F34 -> 0 | G34: =+Input!G34 -> 0 | H34: =+Input!H34 -> 0 | I34: =+Input!I34 -> 0 | J34: =+Input!J34 -> 0
A35: 32 | B35: 2 | C35: =+Input!C35 -> 1 | D35: =+Input!D35 -> 3.14 | E35: =+Input!E35 -> 3.45 | F35: =+Input!F35 -> 3.24 | G35: =+Input!G35 -> 0 | H35: =+Input!H35 -> 0 | I35: =+Input!I35 -> 0 | J35: =+Input!J35 -> 0
A36: 33 | B36: 0 | C36: =+Input!C36 -> 2 | D36: =+Input!D36 -> 2.63 | E36: =+Input!E36 -> 2.63 | F36: =+Input!F36 -> 2.84 | G36: =+Input!G36 -> 0 | H36: =+Input!H36 -> 0 | I36: =+Input!I36 -> 0 | J36: =+Input!J36 -> 0
A37: 34 | B37: 0 | C37: =+Input!C37 -> 3 | D37: =+Input!D37 -> 3 | E37: =+Input!E37 -> 2.7 | F37: =+Input!F37 -> 3.09 | G37: =+Input!G37 -> 0 | H37: =+Input!H37 -> 0 | I37: =+Input!I37 -> 0 | J37: =+Input!J37 -> 0
A38: 35 | B38: 0 | C38: =+Input!C38 -> 4 | D38: =+Input!D38 -> 2.41 | E38: =+Input!E38 -> 3.2 | F38: =+Input!F38 -> 1.86 | G38: =+Input!G38 -> 0 | H38: =+Input!H38 -> 0 | I38: =+Input!I38 -> 0 | J38: =+Input!J38 -> 0
A39: 36 | B39: 0 | C39: =+Input!C39 -> 5 | D39: =+Input!D39 -> 2.63 | E39: =+Input!E39 -> 2.84 | F39: =+Input!F39 -> 2.61 | G39: =+Input!G39 -> 0 | H39: =+Input!H39 -> 0 | I39: =+Input!I39 -> 0 | J39: =+Input!J39 -> 0
A40: 37 | B40: 0 | C40: =+Input!C40 -> 6 | D40: =+Input!D40 -> 2.56 | E40: =+Input!E40 -> 3.14 | F40: =+Input!F40 -> 2.36 | G40: =+Input!G40 -> 0 | H40: =+Input!H40 -> 0 | I40: =+Input!I40 -> 0 | J40: =+Input!J40 -> 0
A41: 38 | B41: 3 | C41: =+Input!C41 -> 0 | D41: =+Input!D41 -> 0 | E41: =+Input!E41 -> 0 | F41: =+Input!F41 -> 0 | G41: =+Input!G41 -> 0 | H41: =+Input!H41 -> 0 | I41: =+Input!I41 -> 0 | J41: =+Input!J41 -> 0
A42: 39 | B42: 0 | C42: =+Input!C42 -> 1 | D42: =+Input!D42 -> 3.87 | E42: =+Input!E42 -> 3.63 | F42: =+Input!F42 -> 3.45 | G42: =+Input!G42 -> 0 | H42: =+Input!H42 -> 0 | I42: =+Input!I42 -> 0 | J42: =+Input!J42 -> 0
A43: 40 | B43: 0 | C43: =+Input!C43 -> 2 | D43: =+Input!D43 -> 2.67 | E43: =+Input!E43 -> 3.39 | F43: =+Input!F43 -> 2.96 | G43: =+Input!G43 -> 0 | H43: =+Input!H43 -> 0 | I43: =+Input!I43 -> 0 | J43: =+Input!J43 -> 0
A44: 41 | B44: 0 | C44: =+Input!C44 -> 3 | D44: =+Input!D44 -> 2.49 | E44: =+Input!E44 -> 2.84 | F44: =+Input!F44 -> 3.02 | G44: =+Input!G44 -> 0 | H44: =+Input!H44 -> 0 | I44: =+Input!I44 -> 0 | J44: =+Input!J44 -> 0
A45: 42 | B45: 0 | C45: =+Input!C45 -> 4 | D45: =+Input!D45 -> 3.04 | E45: =+Input!E45 -> 3.57 | F45: =+Input!F45 -> 4.95 | G45: =+Input!G45 -> 8.02 | H45: =+Input!H45 -> 0 | I45: =+Input!I45 -> 0 | J45: =+Input!J45 -> 0
A46: 43 | B46: 0 | C46: =+Input!C46 -> 5 | D46: =+Input!D46 -> 2.79 | E46: =+Input!E46 -> 2.99 | F46: =+Input!F46 -> 2.62 | G46: =+Input!G46 -> 0 | H46: =+Input!H46 -> 0 | I46: =+Input!I46 -> 0 | J46: =+Input!J46 -> 0
A47: 44 | B47: 4 | C47: =+Input!C47 -> 6 | D47: =+Input!D47 -> 2.87 | E47: =+Input!E47 -> 3 | F47: =+Input!F47 -> 2.56 | G47: =+Input!G47 -> 0 | H47: =+Input!H47 -> 0 | I47: =+Input!I47 -> 0 | J47: =+Input!J47 -> 0
A48: 45 | B48: 0 | C48: =+Input!C48 -> 0 | D48: =+Input!D48 -> 0 | E48: =+Input!E48 -> 0 | F48: =+Input!F48 -> 0 | G48: =+Input!G48 -> 0 | H48: =+Input!H48 -> 0 | I48: =+Input!I48 -> 0 | J48: =+Input!J48 -> 0
A49: 46 | B49: 0 | C49: =+Input!C49 -> 1 | D49: =+Input!D49 -> 2.86 | E49: =+Input!E49 -> 2.89 | F49: =+Input!F49 -> 2.73 | G49: =+Input!G49 -> 0 | H49: =+Input!H49 -> 0 | I49: =+Input!I49 -> 0 | J49: =+Input!J49 -> 0
A50: 47 | B50: 0 | C50: =+Input!C50 -> 2 | D50: =+Input!D50 -> 2.53 | E50: =+Input!E50 -> 2.83 | F50: =+Input!F50 -> 3.72 | G50: =+Input!G50 -> 6.31 | H50: =+Input!H50 -> 0 | I50: =+Input!I50 -> 0 | J50: =+Input!J50 -> 0
A51: 48 | B51: 0 | C51: =+Input!C51 -> 3 | D51: =+Input!D51 -> 2.13 | E51: =+Input!E51 -> 2.72 | F51: =+Input!F51 -> 1.86 | G51: =+Input!G51 -> 0 | H51: =+Input!H51 -> 0 | I51: =+Input!I51 -> 0 | J51: =+Input!J51 -> 0
A52: 49 | B52: 0 | C52: =+Input!C52 -> 0 | D52: =+Input!D52 -> 0 | E52: =+Input!E52 -> 0 | F52: =+Input!F52 -> 0 | G52: =+Input!G52 -> 0 | H52: =+Input!H52 -> 0 | I52: =+Input!I52 -> 0 | J52: =+Input!J52 -> 0
A53: 50 | B53: 0 | C53: =+Input!C53 -> 1 | D53: =+Input!D53 -> 2.88 | E53: =+Input!E53 -> 3.08 | F53: =+Input!F53 -> 2.55 | G53: =+Input!G53 -> 0 | H53: =+Input!H53 -> 0 | I53: =+Input!I53 -> 0 | J53: =+Input!J53 -> 0
A54: 51 | B54: 1 | C54: =+Input!C54 -> 2 | D54: =+Input!D54 -> 3.73 | E54: =+Input!E54 -> 3.97 | F54: =+Input!F54 -> 5.19 | G54: =+Input!G54 -> 7.99 | H54: =+Input!H54 -> 0 | I54: =+Input!I54 -> 0 | J54: =+Input!J54 -> 0
A55: 52 | B55: 0 | C55: =+Input!C55 -> 3 | D55: =+Input!D55 -> 2.96 | E55: =+Input!E55 -> 3.15 | F55: =+Input!F55 -> 2.82 | G55: =+Input!G55 -> 0 | H55: =+Input!H55 -> 0 | I55: =+Input!I55 -> 0 | J55: =+Input!J55 -> 0
A56: 53 | B56: 0 | C56: =+Input!C56 -> 4 | D56: =+Input!D56 -> 3.1 | E56: =+Input!E56 -> 3.32 | F56: =+Input!F56 -> 3.04 | G56: =+Input!G56 -> 0 | H56: =+Input!H56 -> 0 | I56: =+Input!I56 -> 0 | J56: =+Input!J56 -> 0
A57: 54 | B57: 0 | C57: =+Input!C57 -> 5 | D57: =+Input!D57 -> 3.21 | E57: =+Input!E57 -> 3.33 | F57: =+Input!F57 -> 3.01 | G57: =+Input!G57 -> 0 | H57: =+Input!H57 -> 0 | I57: =+Input!I57 -> 0 | J57: =+Input!J57 -> 0
A58: 55 | B58: 0 | C58: =+Input!C58 -> 0 | D58: =+Input!D58 -> 0 | E58: =+Input!E58 -> 0 | F58: =+Input!F58 -> 0 | G58: =+Input!G58 -> 0 | H58: =+Input!H58 -> 0 | I58: =+Input!I58 -> 0 | J58: =+Input!J58 -> 0
A59: 56 | B59: 0 | C59: =+Input!C59 -> 1 | D59: =+Input!D59 -> 2.82 | E59: =+Input!E59 -> 3.08 | F59: =+Input!F59 -> 0 | G59: =+Input!G59 -> 0 | H59: =+Input!H59 -> 0 | I59: =+Input!I59 -> 0 | J59: =+Input!J59 -> 0
A60: 57 | B60: 2 | C60: =+Input!C60 -> 2 | D60: =+Input!D60 -> 3.26 | E60: =+Input!E60 -> 3.99 | F60: =+Input!F60 -> 4.81 | G60: =+Input!G60 -> 7.99 | H60: =+Input!H60 -> 0 | I60: =+Input!I60 -> 0 | J60: =+Input!J60 -> 0
A61: 58 | B61: 0 | C61: =+Input!C61 -> 3 | D61: =+Input!D61 -> 2.69 | E61: =+Input!E61 -> 2.92 | F61: =+Input!F61 -> 0 | G61: =+Input!G61 -> 0 | H61: =+Input!H61 -> 0 | I61: =+Input!I61 -> 0 | J61: =+Input!J61 -> 0
A62: 59 | B62: 0 | C62: =+Input!C62 -> 4 | D62: =+Input!D62 -> 3.24 | E62: =+Input!E62 -> 3.72 | F62: =+Input!F62 -> 5.11 | G62: =+Input!G62 -> 8.04 | H62: =+Input!H62 -> 0 | I62: =+Input!I62 -> 0 | J62: =+Input!J62 -> 0
A63: 60 | B63: 0 | C63: =+Input!C63 -> 5 | D63: =+Input!D63 -> 2.89 | E63: =+Input!E63 -> 3.22 | F63: =+Input!F63 -> 0 | G63: =+Input!G63 -> 0 | H63: =+Input!H63 -> 0 | I63: =+Input!I63 -> 0 | J63: =+Input!J63 -> 0
A64: 61 | B64: 0 | C64: =+Input!C64 -> 0 | D64: =+Input!D64 -> 0 | E64: =+Input!E64 -> 0 | F64: =+Input!F64 -> 0 | G64: =+Input!G64 -> 0 | H64: =+Input!H64 -> 0 | I64: =+Input!I64 -> 0 | J64: =+Input!J64 -> 0
A65: 62 | B65: 0 | C65: =+Input!C65 -> 1 | D65: =+Input!D65 -> 3.67 | E65: =+Input!E65 -> 4.7 | F65: =+Input!F65 -> 5.87 | G65: =+Input!G65 -> 9.07 | H65: =+Input!H65 -> 0 | I65: =+Input!I65 -> 0 | J65: =+Input!J65 -> 0
A66: 63 | B66: 3 | C66: =+Input!C66 -> 2 | D66: =+Input!D66 -> 3.04 | E66: =+Input!E66 -> 3.54 | F66: =+Input!F66 -> 4.38 | G66: =+Input!G66 -> 4.42 | H66: =+Input!H66 -> 0 | I66: =+Input!I66 -> 0 | J66: =+Input!J66 -> 0
A67: 64 | B67: 0 | C67: =+Input!C67 -> 3 | D67: =+Input!D67 -> 2.64 | E67: =+Input!E67 -> 2.49 | F67: =+Input!F67 -> 0 | G67: =+Input!G67 -> 0 | H67: =+Input!H67 -> 0 | I67: =+Input!I67 -> 0 | J67: =+Input!J67 -> 0
A68: 65 | B68: 0 | C68: =+Input!C68 -> 4 | D68: =+Input!D68 -> 3.29 | E68: =+Input!E68 -> 4.08 | F68: =+Input!F68 -> 5.43 | G68: =+Input!G68 -> 8.11 | H68: =+Input!H68 -> 0 | I68: =+Input!I68 -> 0 | J68: =+Input!J68 -> 0
A69: 66 | B69: 0 | C69: =+Input!C69 -> 5 | D69: =+Input!D69 -> 2.96 | E69: =+Input!E69 -> 3.45 | F69: =+Input!F69 -> 4.24 | G69: =+Input!G69 -> 4.13 | H69: =+Input!H69 -> 0 | I69: =+Input!I69 -> 0 | J69: =+Input!J69 -> 0
A70: 67 | B70: 0 | C70: =+Input!C70 -> 0 | D70: =+Input!D70 -> 0 | E70: =+Input!E70 -> 0 | F70: =+Input!F70 -> 0 | G70: =+Input!G70 -> 0 | H70: =+Input!H70 -> 0 | I70: =+Input!I70 -> 0 | J70: =+Input!J70 -> 0
A71: 68 | B71: 0 | C71: =+Input!C71 -> 1 | D71: =+Input!D71 -> 2.79 | E71: =+Input!E71 -> 0 | F71: =+Input!F71 -> 0 | G71: =+Input!G71 -> 0 | H71: =+Input!H71 -> 0 | I71: =+Input!I71 -> 0 | J71: =+Input!J71 -> 0
A72: 69 | B72: 4 | C72: =+Input!C72 -> 2 | D72: =+Input!D72 -> 2.7 | E72: =+Input!E72 -> 2.77 | F72: =+Input!F72 -> 0 | G72: =+Input!G72 -> 0 | H72: =+Input!H72 -> 0 | I72: =+Input!I72 -> 0 | J72: =+Input!J72 -> 0
A73: 70 | B73: 0 | C73: =+Input!C73 -> 3 | D73: =+Input!D73 -> 2.64 | E73: =+Input!E73 -> 2.74 | F73: =+Input!F73 -> 2.05 | G73: =+Input!G73 -> 0 | H73: =+Input!H73 -> 0 | I73: =+Input!I73 -> 0 | J73: =+Input!J73 -> 0
A74: 71 | B74: 0 | C74: =+Input!C74 -> 4 | D74: =+Input!D74 -> 2.7 | E74: =+Input!E74 -> 2.82 | F74: =+Input!F74 -> 2.47 | G74: =+Input!G74 -> 0 | H74: =+Input!H74 -> 0 | I74: =+Input!I74 -> 0 | J74: =+Input!J74 -> 0
A75: 72 | B75: 0 | C75: =+Input!C75 -> 5 | D75: =+Input!D75 -> 2.72 | E75: =+Input!E75 -> 2.9 | F75: =+Input!F75 -> 2.19 | G75: =+Input!G75 -> 0 | H75: =+Input!H75 -> 0 | I75: =+Input!I75 -> 0 | J75: =+Input!J75 -> 0
A76: 73 | B76: 0 | C76: =+Input!C76 -> 0 | D76: =+Input!D76 -> 0 | E76: =+Input!E76 -> 0 | F76: =+Input!F76 -> 0 | G76: =+Input!G76 -> 0 | H76: =+Input!H76 -> 0 | I76: =+Input!I76 -> 0 | J76: =+Input!J76 -> 0
A77: 74 | B77: 0 | C77: =+Input!C77 -> 1 | D77: =+Input!D77 -> 2.75 | E77: =+Input!E77 -> 2.75 | F77: =+Input!F77 -> 2.34 | G77: =+Input!G77 -> 0 | H77: =+Input!H77 -> 0 | I77: =+Input!I77 -> 0 | J77: =+Input!J77 -> 0
A78: 75 | B78: 0 | C78: =+Input!C78 -> 2 | D78: =+Input!D78 -> 2.53 | E78: =+Input!E78 -> 2.51 | F78: =+Input!F78 -> 2.44 | G78: =+Input!G78 -> 0 | H78: =+Input!H78 -> 0 | I78: =+Input!I78 -> 0 | J78: =+Input!J78 -> 0
A79: 76 | B79: 1 | C79: =+Input!C79 -> 3 | D79: =+Input!D79 -> 2.82 | E79: =+Input!E79 -> 2.87 | F79: =+Input!F79 -> 4.23 | G79: =+Input!G79 -> 0 | H79: =+Input!H79 -> 0 | I79: =+Input!I79 -> 0 | J79: =+Input!J79 -> 0
A80: 77 | B80: 0 | C80: =+Input!C80 -> 4 | D80: =+Input!D80 -> 2.39 | E80: =+Input!E80 -> 2.82 | F80: =+Input!F80 -> 3.47 | G80: =+Input!G80 -> 0 | H80: =+Input!H80 -> 0 | I80: =+Input!I80 -> 0 | J80: =+Input!J80 -> 0
A81: 78 | B81: 0 | C81: =+Input!C81 -> 5 | D81: =+Input!D81 -> 2.72 | E81: =+Input!E81 -> 2.79 | F81: =+Input!F81 -> 2.34 | G81: =+Input!G81 -> 0 | H81: =+Input!H81 -> 0 | I81: =+Input!I81 -> 0 | J81: =+Input!J81 -> 0
A82: 79 | B82: 0 | C82: =+Input!C82 -> 0 | D82: =+Input!D82 -> 0 | E82: =+Input!E82 -> 0 | F82: =+Input!F82 -> 0 | G82: =+Input!G82 -> 0 | H82: =+Input!H82 -> 0 | I82: =+Input!I82 -> 0 | J82: =+Input!J82 -> 0
A83: 80 | B83: 0 | C83: =+Input!C83 -> 1 | D83: =+Input!D83 -> 3.16 | E83: =+Input!E83 -> 3.21 | F83: =+Input!F83 -> 3.04 | G83: =+Input!G83 -> 0 | H83: =+Input!H83 -> 0 | I83: =+Input!I83 -> 0 | J83: =+Input!J83 -> 0
A84: 81 | B84: 0 | C84: =+Input!C84 -> 2 | D84: =+Input!D84 -> 2.8 | E84: =+Input!E84 -> 3.05 | F84: =+Input!F84 -> 0 | G84: =+Input!G84 -> 0 | H84: =+Input!H84 -> 0 | I84: =+Input!I84 -> 0 | J84: =+Input!J84 -> 0
A85: 82 | B85: 2 | C85: =+Input!C85 -> 3 | D85: =+Input!D85 -> 3.1 | E85: =+Input!E85 -> 3.05 | F85: =+Input!F85 -> 2.87 | G85: =+Input!G85 -> 0 | H85: =+Input!H85 -> 0 | I85: =+Input!I85 -> 0 | J85: =+Input!J85 -> 0
A86: 83 | B86: 0 | C86: =+Input!C86 -> 0 | D86: =+Input!D86 -> 0 | E86: =+Input!E86 -> 0 | F86: =+Input!F86 -> 0 | G86: =+Input!G86 -> 0 | H86: =+Input!H86 -> 0 | I86: =+Input!I86 -> 0 | J86: =+Input!J86 -> 0
A87: 84 | B87: 0 | C87: =+Input!C87 -> 1 | D87: =+Input!D87 -> 4.22 | E87: =+Input!E87 -> 4.83 | F87: =+Input!F87 -> 6.07 | G87: =+Input!G87 -> 9.31 | H87: =+Input!H87 -> 0 | I87: =+Input!I87 -> 0 | J87: =+Input!J87 -> 0
A88: 85 | B88: 0 | C88: =+Input!C88 -> 2 | D88: =+Input!D88 -> 3.82 | E88: =+Input!E88 -> 4.1 | F88: =+Input!F88 -> 5.43 | G88: =+Input!G88 -> 8.14 | H88: =+Input!H88 -> 0 | I88: =+Input!I88 -> 0 | J88: =+Input!J88 -> 0
A89: 86 | B89: 0 | C89: =+Input!C89 -> 3 | D89: =+Input!D89 -> 2.8 | E89: =+Input!E89 -> 3.21 | F89: =+Input!F89 -> 2.98 | G89: =+Input!G89 -> 0 | H89: =+Input!H89 -> 0 | I89: =+Input!I89 -> 0 | J89: =+Input!J89 -> 0
A90: 87 | B90: 0 | C90: =+Input!C90 -> 4 | D90: =+Input!D90 -> 3.1 | E90: =+Input!E90 -> 3.11 | F90: =+Input!F90 -> 2.7 | G90: =+Input!G90 -> 0 | H90: =+Input!H90 -> 0 | I90: =+Input!I90 -> 0 | J90: =+Input!J90 -> 0
A91: 88 | B91: 3 | C91: =+Input!C91 -> 5 | D91: =+Input!D91 -> 3.32 | E91: =+Input!E91 -> 3.66 | F91: =+Input!F91 -> 3.77 | G91: =+Input!G91 -> 3.89 | H91: =+Input!H91 -> 0 | I91: =+Input!I91 -> 0 | J91: =+Input!J91 -> 0
A92: 89 | B92: 0 | C92: =+Input!C92 -> 6 | D92: =+Input!D92 -> 3.22 | E92: =+Input!E92 -> 3.21 | F92: =+Input!F92 -> 0 | G92: =+Input!G92 -> 0 | H92: =+Input!H92 -> 0 | I92: =+Input!I92 -> 0 | J92: =+Input!J92 -> 0
A93: 90 | B93: 0 | C93: =+Input!C93 -> 0 | D93: =+Input!D93 -> 0 | E93: =+Input!E93 -> 0 | F93: =+Input!F93 -> 0 | G93: =+Input!G93 -> 0 | H93: =+Input!H93 -> 0 | I93: =+Input!I93 -> 0 | J93: =+Input!J93 -> 0
A94: 91 | B94: =+B69 -> 0 | C94: =+Input!C94 -> 0 | D94: =+Input!D94 -> 0 | E94: =+Input!E94 -> 0 | F94: =+Input!F94 -> 0 | G94: =+Input!G94 -> 0 | H94: =+Input!H94 -> 0 | I94: =+Input!I94 -> 0 | J94: =+Input!J94 -> 0
A95: 92 | B95: 0 | C95: =+Input!C95 -> 0 | D95: =+Input!D95 -> 0 | E95: =+Input!E95 -> 0 | F95: =+Input!F95 -> 0 | G95: =+Input!G95 -> 0 | H95: =+Input!H95 -> 0 | I95: =+Input!I95 -> 0 | J95: =+Input!J95 -> 0
A96: 93 | B96: 0 | C96: =+Input!C96 -> 0 | D96: =+Input!D96 -> 0 | E96: =+Input!E96 -> 0 | F96: =+Input!F96 -> 0 | G96: =+Input!G96 -> 0 | H96: =+Input!H96 -> 0 | I96: =+Input!I96 -> 0 | J96: =+Input!J96 -> 0
A97: 94 | B97: 4 | C97: =+Input!C97 -> 0 | D97: =+Input!D97 -> 0 | E97: =+Input!E97 -> 0 | F97: =+Input!F97 -> 0 | G97: =+Input!G97 -> 0 | H97: =+Input!H97 -> 0 | I97: =+Input!I97 -> 0 | J97: =+Input!J97 -> 0
A98: 95 | B98: 0 | C98: =+Input!C98 -> 0 | D98: =+Input!D98 -> 0 | E98: =+Input!E98 -> 0 | F98: =+Input!F98 -> 0 | G98: =+Input!G98 -> 0 | H98: =+Input!H98 -> 0 | I98: =+Input!I98 -> 0 | J98: =+Input!J98 -> 0
A99: 96 | B99: 0 | C99: =+Input!C99 -> 0 | D99: =+Input!D99 -> 0 | E99: =+Input!E99 -> 0 | F99: =+Input!F99 -> 0 | G99: =+Input!G99 -> 0 | H99: =+Input!H99 -> 0 | I99: =+Input!I99 -> 0 | J99: =+Input!J99 -> 0
A100: 97 | B100: 0 | C100: =+Input!C100 -> 0 | D100: =+Input!D100 -> 0 | E100: =+Input!E100 -> 0 | F100: =+Input!F100 -> 0 | G100: =+Input!G100 -> 0 | H100: =+Input!H100 -> 0 | I100: =+Input!I100 -> 0 | J100: =+Input!J100 -> 0
A101: 98 | B101: 0 | C101: =+Input!C101 -> 0 | D101: =+Input!D101 -> 0 | E101: =+Input!E101 -> 0 | F101: =+Input!F101 -> 0 | G101: =+Input!G101 -> 0 | H101: =+Input!H101 -> 0 | I101: =+Input!I101 -> 0 | J101: =+Input!J101 -> 0
A102: 99 | B102: 0 | C102: =+Input!C102 -> 0 | D102: =+Input!D102 -> 0 | E102: =+Input!E102 -> 0 | F102: =+Input!F102 -> 0 | G102: =+Input!G102 -> 0 | H102: =+Input!H102 -> 0 | I102: =+Input!I102 -> 0 | J102: =+Input!J102 -> 0
A103: 100 | B103: 0 | C103: =+Input!C103 -> 0 | D103: =+Input!D103 -> 0 | E103: =+Input!E103 -> 0 | F103: =+Input!F103 -> 0 | G103: =+Input!G103 -> 0 | H103: =+Input!H103 -> 0 | I103: =+Input!I103 -> 0 | J103: =+Input!J103 -> 0
A104: 101 | B104: 1 | C104: =+Input!C104 -> 0 | D104: =+Input!D104 -> 0 | E104: =+Input!E104 -> 0 | F104: =+Input!F104 -> 0 | G104: =+Input!G104 -> 0 | H104: =+Input!H104 -> 0 | I104: =+Input!I104 -> 0 | J104: =+Input!J104 -> 0
A105: 102 | B105: 0 | C105: =+Input!C105 -> 0 | D105: =+Input!D105 -> 0 | E105: =+Input!E105 -> 0 | F105: =+Input!F105 -> 0 | G105: =+Input!G105 -> 0 | H105: =+Input!H105 -> 0 | I105: =+Input!I105 -> 0 | J105: =+Input!J105 -> 0
A106: 103 | B106: 0 | C106: =+Input!C106 -> 0 | D106: =+Input!D106 -> 0 | E106: =+Input!E106 -> 0 | F106: =+Input!F106 -> 0 | G106: =+Input!G106 -> 0 | H106: =+Input!H106 -> 0 | I106: =+Input!I106 -> 0 | J106: =+Input!J106 -> 0
A107: 104 | B107: 0 | C107: =+Input!C107 -> 0 | D107: =+Input!D107 -> 0 | E107: =+Input!E107 -> 0 | F107: =+Input!F107 -> 0 | G107: =+Input!G107 -> 0 | H107: =+Input!H107 -> 0 | I107: =+Input!I107 -> 0 | J107: =+Input!J107 -> 0
A108: 105 | B108: 0 | C108: =+Input!C108 -> 0 | D108: =+Input!D108 -> 0 | E108: =+Input!E108 -> 0 | F108: =+Input!F108 -> 0 | G108: =+Input!G108 -> 0 | H108: =+Input!H108 -> 0 | I108: =+Input!I108 -> 0 | J108: =+Input!J108 -> 0
A109: 106 | B109: 0 | C109: =+Input!C109 -> 0 | D109: =+Input!D109 -> 0 | E109: =+Input!E109 -> 0 | F109: =+Input!F109 -> 0 | G109: =+Input!G109 -> 0 | H109: =+Input!H109 -> 0 | I109: =+Input!I109 -> 0 | J109: =+Input!J109 -> 0
A110: 107 | B110: 2 | C110: =+Input!C110 -> 0 | D110: =+Input!D110 -> 0 | E110: =+Input!E110 -> 0 | F110: =+Input!F110 -> 0 | G110: =+Input!G110 -> 0 | H110: =+Input!H110 -> 0 | I110: =+Input!I110 -> 0 | J110: =+Input!J110 -> 0
A111: 108 | B111: 0 | C111: =+Input!C111 -> 0 | D111: =+Input!D111 -> 0 | E111: =+Input!E111 -> 0 | F111: =+Input!F111 -> 0 | G111: =+Input!G111 -> 0 | H111: =+Input!H111 -> 0 | I111: =+Input!I111 -> 0 | J111: =+Input!J111 -> 0
A112: 109 | B112: 0 | C112: =+Input!C112 -> 0 | D112: =+Input!D112 -> 0 | E112: =+Input!E112 -> 0 | F112: =+Input!F112 -> 0 | G112: =+Input!G112 -> 0 | H112: =+Input!H112 -> 0 | I112: =+Input!I112 -> 0 | J112: =+Input!J112 -> 0
A113: 110 | B113: 0 | C113: =+Input!C113 -> 0 | D113: =+Input!D113 -> 0 | E113: =+Input!E113 -> 0 | F113: =+Input!F113 -> 0 | G113: =+Input!G113 -> 0 | H113: =+Input!H113 -> 0 | I113: =+Input!I113 -> 0 | J113: =+Input!J113 -> 0
A114: 111 | B114: 0 | C114: =+Input!C114 -> 0 | D114: =+Input!D114 -> 0 | E114: =+Input!E114 -> 0 | F114: =+Input!F114 -> 0 | G114: =+Input!G114 -> 0 | H114: =+Input!H114 -> 0 | I114: =+Input!I114 -> 0 | J114: =+Input!J114 -> 0
A115: 112 | B115: 0 | C115: =+Input!C115 -> 0 | D115: =+Input!D115 -> 0 | E115: =+Input!E115 -> 0 | F115: =+Input!F115 -> 0 | G115: =+Input!G115 -> 0 | H115: =+Input!H115 -> 0 | I115: =+Input!I115 -> 0 | J115: =+Input!J115 -> 0
A116: 113 | B116: 3 | C116: =+Input!C116 -> 0 | D116: =+Input!D116 -> 0 | E116: =+Input!E116 -> 0 | F116: =+Input!F116 -> 0 | G116: =+Input!G116 -> 0 | H116: =+Input!H116 -> 0 | I116: =+Input!I116 -> 0 | J116: =+Input!J116 -> 0
A117: 114 | B117: 0 | C117: =+Input!C117 -> 0 | D117: =+Input!D117 -> 0 | E117: =+Input!E117 -> 0 | F117: =+Input!F117 -> 0 | G117: =+Input!G117 -> 0 | H117: =+Input!H117 -> 0 | I117: =+Input!I117 -> 0 | J117: =+Input!J117 -> 0
A118: 115 | B118: 0 | C118: =+Input!C118 -> 0 | D118: =+Input!D118 -> 0 | E118: =+Input!E118 -> 0 | F118: =+Input!F118 -> 0 | G118: =+Input!G118 -> 0 | H118: =+Input!H118 -> 0 | I118: =+Input!I118 -> 0 | J118: =+Input!J118 -> 0
A119: 116 | B119: 0 | C119: =+Input!C119 -> 0 | D119: =+Input!D119 -> 0 | E119: =+Input!E119 -> 0 | F119: =+Input!F119 -> 0 | G119: =+Input!G119 -> 0 | H119: =+Input!H119 -> 0 | I119: =+Input!I119 -> 0 | J119: =+Input!J119 -> 0
A120: 117 | B120: 0 | C120: =+Input!C120 -> 0 | D120: =+Input!D120 -> 0 | E120: =+Input!E120 -> 0 | F120: =+Input!F120 -> 0 | G120: =+Input!G120 -> 0 | H120: =+Input!H120 -> 0 | I120: =+Input!I120 -> 0 | J120: =+Input!J120 -> 0
A121: 118 | B121: 0 | C121: =+Input!C121 -> 0 | D121: =+Input!D121 -> 0 | E121: =+Input!E121 -> 0 | F121: =+Input!F121 -> 0 | G121: =+Input!G121 -> 0 | H121: =+Input!H121 -> 0 | I121: =+Input!I121 -> 0 | J121: =+Input!J121 -> 0
A122: 119 | B122: 4 | C122: =+Input!C122 -> 0 | D122: =+Input!D122 -> 0 | E122: =+Input!E122 -> 0 | F122: =+Input!F122 -> 0 | G122: =+Input!G122 -> 0 | H122: =+Input!H122 -> 0 | I122: =+Input!I122 -> 0 | J122: =+Input!J122 -> 0
A123: 120 | B123: 0 | C123: =+Input!C123 -> 0 | D123: =+Input!D123 -> 0 | E123: =+Input!E123 -> 0 | F123: =+Input!F123 -> 0 | G123: =+Input!G123 -> 0 | H123: =+Input!H123 -> 0 | I123: =+Input!I123 -> 0 | J123: =+Input!J123 -> 0
A124: 121 | B124: 0 | C124: =+Input!C124 -> 0 | D124: =+Input!D124 -> 0 | E124: =+Input!E124 -> 0 | F124: =+Input!F124 -> 0 | G124: =+Input!G124 -> 0 | H124: =+Input!H124 -> 0 | I124: =+Input!I124 -> 0 | J124: =+Input!J124 -> 0
A125: 122 | B125: 0 | C125: =+Input!C125 -> 0 | D125: =+Input!D125 -> 0 | E125: =+Input!E125 -> 0 | F125: =+Input!F125 -> 0 | G125: =+Input!G125 -> 0 | H125: =+Input!H125 -> 0 | I125: =+Input!I125 -> 0 | J125: =+Input!J125 -> 0
A126: 123 | B126: 0 | C126: =+Input!C126 -> 0 | D126: =+Input!D126 -> 0 | E126: =+Input!E126 -> 0 | F126: =+Input!F126 -> 0 | G126: =+Input!G126 -> 0 | H126: =+Input!H126 -> 0 | I126: =+Input!I126 -> 0 | J126: =+Input!J126 -> 0
A127: 124 | B127: 0 | C127: =+Input!C127 -> 0 | D127: =+Input!D127 -> 0 | E127: =+Input!E127 -> 0 | F127: =+Input!F127 -> 0 | G127: =+Input!G127 -> 0 | H127: =+Input!H127 -> 0 | I127: =+Input!I127 -> 0 | J127: =+Input!J127 -> 0
A128: 125 | B128: 0 | C128: =+Input!C128 -> 0 | D128: =+Input!D128 -> 0 | E128: =+Input!E128 -> 0 | F128: =+Input!F128 -> 0 | G128: =+Input!G128 -> 0 | H128: =+Input!H128 -> 0 | I128: =+Input!I128 -> 0 | J128: =+Input!J128 -> 0
A129: 126 | B129: 1 | C129: =+Input!C129 -> 0 | D129: =+Input!D129 -> 0 | E129: =+Input!E129 -> 0 | F129: =+Input!F129 -> 0 | G129: =+Input!G129 -> 0 | H129: =+Input!H129 -> 0 | I129: =+Input!I129 -> 0 | J129: =+Input!J129 -> 0
A130: 127 | B130: 0 | C130: =+Input!C130 -> 0 | D130: =+Input!D130 -> 0 | E130: =+Input!E130 -> 0 | F130: =+Input!F130 -> 0 | G130: =+Input!G130 -> 0 | H130: =+Input!H130 -> 0 | I130: =+Input!I130 -> 0 | J130: =+Input!J130 -> 0
A131: 128 | B131: 0 | C131: =+Input!C131 -> 0 | D131: =+Input!D131 -> 0 | E131: =+Input!E131 -> 0 | F131: =+Input!F131 -> 0 | G131: =+Input!G131 -> 0 | H131: =+Input!H131 -> 0 | I131: =+Input!I131 -> 0 | J131: =+Input!J131 -> 0
A132: 129 | B132: 0 | C132: =+Input!C132 -> 0 | D132: =+Input!D132 -> 0 | E132: =+Input!E132 -> 0 | F132: =+Input!F132 -> 0 | G132: =+Input!G132 -> 0 | H132: =+Input!H132 -> 0 | I132: =+Input!I132 -> 0 | J132: =+Input!J132 -> 0
A133: 130 | B133: 0 | C133: =+Input!C133 -> 0 | D133: =+Input!D133 -> 0 | E133: =+Input!E133 -> 0 | F133: =+Input!F133 -> 0 | G133: =+Input!G133 -> 0 | H133: =+Input!H133 -> 0 | I133: =+Input!I133 -> 0 | J133: =+Input!J133 -> 0
A134: 131 | B134: 0 | C134: =+Input!C134 -> 0 | D134: =+Input!D134 -> 0 | E134: =+Input!E134 -> 0 | F134: =+Input!F134 -> 0 | G134: =+Input!G134 -> 0 | H134: =+Input!H134 -> 0 | I134: =+Input!I134 -> 0 | J134: =+Input!J134 -> 0
A135: 132 | B135: 2 | C135: =+Input!C135 -> 0 | D135: =+Input!D135 -> 0 | E135: =+Input!E135 -> 0 | F135: =+Input!F135 -> 0 | G135: =+Input!G135 -> 0 | H135: =+Input!H135 -> 0 | I135: =+Input!I135 -> 0 | J135: =+Input!J135 -> 0
A136: 133 | B136: 0 | C136: =+Input!C136 -> 0 | D136: =+Input!D136 -> 0 | E136: =+Input!E136 -> 0 | F136: =+Input!F136 -> 0 | G136: =+Input!G136 -> 0 | H136: =+Input!H136 -> 0 | I136: =+Input!I136 -> 0 | J136: =+Input!J136 -> 0
A137: 134 | B137: 0 | C137: =+Input!C137 -> 0 | D137: =+Input!D137 -> 0 | E137: =+Input!E137 -> 0 | F137: =+Input!F137 -> 0 | G137: =+Input!G137 -> 0 | H137: =+Input!H137 -> 0 | I137: =+Input!I137 -> 0 | J137: =+Input!J137 -> 0
A138: 135 | B138: 0 | C138: =+Input!C138 -> 0 | D138: =+Input!D138 -> 0 | E138: =+Input!E138 -> 0 | F138: =+Input!F138 -> 0 | G138: =+Input!G138 -> 0 | H138: =+Input!H138 -> 0 | I138: =+Input!I138 -> 0 | J138: =+Input!J138 -> 0
A139: 136 | B139: 0 | C139: =+Input!C139 -> 0 | D139: =+Input!D139 -> 0 | E139: =+Input!E139 -> 0 | F139: =+Input!F139 -> 0 | G139: =+Input!G139 -> 0 | H139: =+Input!H139 -> 0 | I139: =+Input!I139 -> 0 | J139: =+Input!J139 -> 0
A140: 137 | B140: 0 | C140: =+Input!C140 -> 0 | D140: =+Input!D140 -> 0 | E140: =+Input!E140 -> 0 | F140: =+Input!F140 -> 0 | G140: =+Input!G140 -> 0 | H140: =+Input!H140 -> 0 | I140: =+Input!I140 -> 0 | J140: =+Input!J140 -> 0
A141: 138 | B141: 3 | C141: =+Input!C141 -> 0 | D141: =+Input!D141 -> 0 | E141: =+Input!E141 -> 0 | F141: =+Input!F141 -> 0 | G141: =+Input!G141 -> 0 | H141: =+Input!H141 -> 0 | I141: =+Input!I141 -> 0 | J141: =+Input!J141 -> 0
A142: 139 | B142: 0 | C142: =+Input!C142 -> 0 | D142: =+Input!D142 -> 0 | E142: =+Input!E142 -> 0 | F142: =+Input!F142 -> 0 | G142: =+Input!G142 -> 0 | H142: =+Input!H142 -> 0 | I142: =+Input!I142 -> 0 | J142: =+Input!J142 -> 0
A143: 140 | B143: 0 | C143: =+Input!C143 -> 0 | D143: =+Input!D143 -> 0 | E143: =+Input!E143 -> 0 | F143: =+Input!F143 -> 0 | G143: =+Input!G143 -> 0 | H143: =+Input!H143 -> 0 | I143: =+Input!I143 -> 0 | J143: =+Input!J143 -> 0
A144: 141 | B144: 0 | C144: =+Input!C144 -> 0 | D144: =+Input!D144 -> 0 | E144: =+Input!E144 -> 0 | F144: =+Input!F144 -> 0 | G144: =+Input!G144 -> 0 | H144: =+Input!H144 -> 0 | I144: =+Input!I144 -> 0 | J144: =+Input!J144 -> 0
A145: 142 | B145: 0 | C145: =+Input!C145 -> 0 | D145: =+Input!D145 -> 0 | E145: =+Input!E145 -> 0 | F145: =+Input!F145 -> 0 | G145: =+Input!G145 -> 0 | H145: =+Input!H145 -> 0 | I145: =+Input!I145 -> 0 | J145: =+Input!J145 -> 0
A146: 143 | B146: 0 | C146: =+Input!C146 -> 0 | D146: =+Input!D146 -> 0 | E146: =+Input!E146 -> 0 | F146: =+Input!F146 -> 0 | G146: =+Input!G146 -> 0 | H146: =+Input!H146 -> 0 | I146: =+Input!I146 -> 0 | J146: =+Input!J146 -> 0
A147: 144 | B147: 4 | C147: =+Input!C147 -> 0 | D147: =+Input!D147 -> 0 | E147: =+Input!E147 -> 0 | F147: =+Input!F147 -> 0 | G147: =+Input!G147 -> 0 | H147: =+Input!H147 -> 0 | I147: =+Input!I147 -> 0 | J147: =+Input!J147 -> 0
A148: 145 | B148: 0 | C148: =+Input!C148 -> 0 | D148: =+Input!D148 -> 0 | E148: =+Input!E148 -> 0 | F148: =+Input!F148 -> 0 | G148: =+Input!G148 -> 0 | H148: =+Input!H148 -> 0 | I148: =+Input!I148 -> 0 | J148: =+Input!J148 -> 0
A149: 146 | B149: 0 | C149: =+Input!C149 -> 0 | D149: =+Input!D149 -> 0 | E149: =+Input!E149 -> 0 | F149: =+Input!F149 -> 0 | G149: =+Input!G149 -> 0 | H149: =+Input!H149 -> 0 | I149: =+Input!I149 -> 0 | J149: =+Input!J149 -> 0
A150: 147 | B150: 0 | C150: =+Input!C150 -> 0 | D150: =+Input!D150 -> 0 | E150: =+Input!E150 -> 0 | F150: =+Input!F150 -> 0 | G150: =+Input!G150 -> 0 | H150: =+Input!H150 -> 0 | I150: =+Input!I150 -> 0 | J150: =+Input!J150 -> 0
A151: 148 | B151: 0 | C151: =+Input!C151 -> 0 | D151: =+Input!D151 -> 0 | E151: =+Input!E151 -> 0 | F151: =+Input!F151 -> 0 | G151: =+Input!G151 -> 0 | H151: =+Input!H151 -> 0 | I151: =+Input!I151 -> 0 | J151: =+Input!J151 -> 0
A152: 149 | B152: 0 | C152: =+Input!C152 -> 0 | D152: =+Input!D152 -> 0 | E152: =+Input!E152 -> 0 | F152: =+Input!F152 -> 0 | G152: =+Input!G152 -> 0 | H152: =+Input!H152 -> 0 | I152: =+Input!I152 -> 0 | J152: =+Input!J152 -> 0
A153: 150 | B153: 0 | C153: =+Input!C153 -> 0 | D153: =+Input!D153 -> 0 | E153: =+Input!E153 -> 0 | F153: =+Input!F153 -> 0 | G153: =+Input!G153 -> 0 | H153: =+Input!H153 -> 0 | I153: =+Input!I153 -> 0 | J153: =+Input!J153 -> 0
A154: 151 | B154: 1 | C154: =+Input!C154 -> 0 | D154: =+Input!D154 -> 0 | E154: =+Input!E154 -> 0 | F154: =+Input!F154 -> 0 | G154: =+Input!G154 -> 0 | H154: =+Input!H154 -> 0 | I154: =+Input!I154 -> 0 | J154: =+Input!J154 -> 0
A155: 152 | B155: 0 | C155: =+Input!C155 -> 0 | D155: =+Input!D155 -> 0 | E155: =+Input!E155 -> 0 | F155: =+Input!F155 -> 0 | G155: =+Input!G155 -> 0 | H155: =+Input!H155 -> 0 | I155: =+Input!I155 -> 0 | J155: =+Input!J155 -> 0
A156: 153 | B156: 0 | C156: =+Input!C156 -> 0 | D156: =+Input!D156 -> 0 | E156: =+Input!E156 -> 0 | F156: =+Input!F156 -> 0 | G156: =+Input!G156 -> 0 | H156: =+Input!H156 -> 0 | I156: =+Input!I156 -> 0 | J156: =+Input!J156 -> 0
A157: 154 | B157: 0 | C157: =+Input!C157 -> 0 | D157: =+Input!D157 -> 0 | E157: =+Input!E157 -> 0 | F157: =+Input!F157 -> 0 | G157: =+Input!G157 -> 0 | H157: =+Input!H157 -> 0 | I157: =+Input!I157 -> 0 | J157: =+Input!J157 -> 0
A158: 155 | B158: =+B133 -> 0 | C158: =+Input!C158 -> 0 | D158: =+Input!D158 -> 0 | E158: =+Input!E158 -> 0 | F158: =+Input!F158 -> 0 | G158: =+Input!G158 -> 0 | H158: =+Input!H158 -> 0 | I158: =+Input!I158 -> 0 | J158: =+Input!J158 -> 0
A159: 156 | B159: 0 | C159: =+Input!C159 -> 0 | D159: =+Input!D159 -> 0 | E159: =+Input!E159 -> 0 | F159: =+Input!F159 -> 0 | G159: =+Input!G159 -> 0 | H159: =+Input!H159 -> 0 | I159: =+Input!I159 -> 0 | J159: =+Input!J159 -> 0
A160: 157 | B160: 2 | C160: =+Input!C160 -> 0 | D160: =+Input!D160 -> 0 | E160: =+Input!E160 -> 0 | F160: =+Input!F160 -> 0 | G160: =+Input!G160 -> 0 | H160: =+Input!H160 -> 0 | I160: =+Input!I160 -> 0 | J160: =+Input!J160 -> 0
A161: 158 | B161: 0 | C161: =+Input!C161 -> 0 | D161: =+Input!D161 -> 0 | E161: =+Input!E161 -> 0 | F161: =+Input!F161 -> 0 | G161: =+Input!G161 -> 0 | H161: =+Input!H161 -> 0 | I161: =+Input!I161 -> 0 | J161: =+Input!J161 -> 0
A162: 159 | B162: 0 | C162: =+Input!C162 -> 0 | D162: =+Input!D162 -> 0 | E162: =+Input!E162 -> 0 | F162: =+Input!F162 -> 0 | G162: =+Input!G162 -> 0 | H162: =+Input!H162 -> 0 | I162: =+Input!I162 -> 0 | J162: =+Input!J162 -> 0
A163: 160 | B163: 0 | C163: =+Input!C163 -> 0 | D163: =+Input!D163 -> 0 | E163: =+Input!E163 -> 0 | F163: =+Input!F163 -> 0 | G163: =+Input!G163 -> 0 | H163: =+Input!H163 -> 0 | I163: =+Input!I163 -> 0 | J163: =+Input!J163 -> 0
A164: 161 | B164: 0 | C164: =+Input!C164 -> 0 | D164: =+Input!D164 -> 0 | E164: =+Input!E164 -> 0 | F164: =+Input!F164 -> 0 | G164: =+Input!G164 -> 0 | H164: =+Input!H164 -> 0 | I164: =+Input!I164 -> 0 | J164: =+Input!J164 -> 0
A165: 162 | B165: 0 | C165: =+Input!C165 -> 0 | D165: =+Input!D165 -> 0 | E165: =+Input!E165 -> 0 | F165: =+Input!F165 -> 0 | G165: =+Input!G165 -> 0 | H165: =+Input!H165 -> 0 | I165: =+Input!I165 -> 0 | J165: =+Input!J165 -> 0
A166: 163 | B166: 3 | C166: =+Input!C166 -> 0 | D166: =+Input!D166 -> 0 | E166: =+Input!E166 -> 0 | F166: =+Input!F166 -> 0 | G166: =+Input!G166 -> 0 | H166: =+Input!H166 -> 0 | I166: =+Input!I166 -> 0 | J166: =+Input!J166 -> 0
A167: 164 | B167: 0 | C167: =+Input!C167 -> 0 | D167: =+Input!D167 -> 0 | E167: =+Input!E167 -> 0 | F167: =+Input!F167 -> 0 | G167: =+Input!G167 -> 0 | H167: =+Input!H167 -> 0 | I167: =+Input!I167 -> 0 | J167: =+Input!J167 -> 0
A168: 165 | B168: 0 | C168: =+Input!C168 -> 0 | D168: =+Input!D168 -> 0 | E168: =+Input!E168 -> 0 | F168: =+Input!F168 -> 0 | G168: =+Input!G168 -> 0 | H168: =+Input!H168 -> 0 | I168: =+Input!I168 -> 0 | J168: =+Input!J168 -> 0
A169: 166 | B169: 0 | C169: =+Input!C169 -> 0 | D169: =+Input!D169 -> 0 | E169: =+Input!E169 -> 0 | F169: =+Input!F169 -> 0 | G169: =+Input!G169 -> 0 | H169: =+Input!H169 -> 0 | I169: =+Input!I169 -> 0 | J169: =+Input!J169 -> 0
A170: 167 | B170: 0 | C170: =+Input!C170 -> 0 | D170: =+Input!D170 -> 0 | E170: =+Input!E170 -> 0 | F170: =+Input!F170 -> 0 | G170: =+Input!G170 -> 0 | H170: =+Input!H170 -> 0 | I170: =+Input!I170 -> 0 | J170: =+Input!J170 -> 0
A171: 168 | B171: 0 | C171: =+Input!C171 -> 0 | D171: =+Input!D171 -> 0 | E171: =+Input!E171 -> 0 | F171: =+Input!F171 -> 0 | G171: =+Input!G171 -> 0 | H171: =+Input!H171 -> 0 | I171: =+Input!I171 -> 0 | J171: =+Input!J171 -> 0
A172: 169 | B172: 4 | C172: =+Input!C172 -> 0 | D172: =+Input!D172 -> 0 | E172: =+Input!E172 -> 0 | F172: =+Input!F172 -> 0 | G172: =+Input!G172 -> 0 | H172: =+Input!H172 -> 0 | I172: =+Input!I172 -> 0 | J172: =+Input!J172 -> 0
A173: 170 | B173: 0 | C173: =+Input!C173 -> 0 | D173: =+Input!D173 -> 0 | E173: =+Input!E173 -> 0 | F173: =+Input!F173 -> 0 | G173: =+Input!G173 -> 0 | H173: =+Input!H173 -> 0 | I173: =+Input!I173 -> 0 | J173: =+Input!J173 -> 0
A174: 171 | B174: 0 | C174: =+Input!C174 -> 0 | D174: =+Input!D174 -> 0 | E174: =+Input!E174 -> 0 | F174: =+Input!F174 -> 0 | G174: =+Input!G174 -> 0 | H174: =+Input!H174 -> 0 | I174: =+Input!I174 -> 0 | J174: =+Input!J174 -> 0
A175: 172 | B175: 0 | C175: =+Input!C175 -> 0 | D175: =+Input!D175 -> 0 | E175: =+Input!E175 -> 0 | F175: =+Input!F175 -> 0 | G175: =+Input!G175 -> 0 | H175: =+Input!H175 -> 0 | I175: =+Input!I175 -> 0 | J175: =+Input!J175 -> 0
A176: 173 | B176: 0 | C176: =+Input!C176 -> 0 | D176: =+Input!D176 -> 0 | E176: =+Input!E176 -> 0 | F176: =+Input!F176 -> 0 | G176: =+Input!G176 -> 0 | H176: =+Input!H176 -> 0 | I176: =+Input!I176 -> 0 | J176: =+Input!J176 -> 0
A177: 174 | B177: 0 | C177: =+Input!C177 -> 0 | D177: =+Input!D177 -> 0 | E177: =+Input!E177 -> 0 | F177: =+Input!F177 -> 0 | G177: =+Input!G177 -> 0 | H177: =+Input!H177 -> 0 | I177: =+Input!I177 -> 0 | J177: =+Input!J177 -> 0
A178: 175 | B178: 0 | C178: =+Input!C178 -> 0 | D178: =+Input!D178 -> 0 | E178: =+Input!E178 -> 0 | F178: =+Input!F178 -> 0 | G178: =+Input!G178 -> 0 | H178: =+Input!H178 -> 0 | I178: =+Input!I178 -> 0 | J178: =+Input!J178 -> 0
A179: 176 | B179: 1 | C179: =+Input!C179 -> 0 | D179: =+Input!D179 -> 0 | E179: =+Input!E179 -> 0 | F179: =+Input!F179 -> 0 | G179: =+Input!G179 -> 0 | H179: =+Input!H179 -> 0 | I179: =+Input!I179 -> 0 | J179: =+Input!J179 -> 0
A180: 177 | B180: 0 | C180: =+Input!C180 -> 0 | D180: =+Input!D180 -> 0 | E180: =+Input!E180 -> 0 | F180: =+Input!F180 -> 0 | G180: =+Input!G180 -> 0 | H180: =+Input!H180 -> 0 | I180: =+Input!I180 -> 0 | J180: =+Input!J180 -> 0
A181: 178 | B181: 0 | C181: =+Input!C181 -> 0 | D181: =+Input!D181 -> 0 | E181: =+Input!E181 -> 0 | F181: =+Input!F181 -> 0 | G181: =+Input!G181 -> 0 | H181: =+Input!H181 -> 0 | I181: =+Input!I181 -> 0 | J181: =+Input!J181 -> 0
A182: 179 | B182: 0 | C182: =+Input!C182 -> 0 | D182: =+Input!D182 -> 0 | E182: =+Input!E182 -> 0 | F182: =+Input!F182 -> 0 | G182: =+Input!G182 -> 0 | H182: =+Input!H182 -> 0 | I182: =+Input!I182 -> 0 | J182: =+Input!J182 -> 0
A183: 180 | B183: 0 | C183: =+Input!C183 -> 0 | D183: =+Input!D183 -> 0 | E183: =+Input!E183 -> 0 | F183: =+Input!F183 -> 0 | G183: =+Input!G183 -> 0 | H183: =+Input!H183 -> 0 | I183: =+Input!I183 -> 0 | J183: =+Input!J183 -> 0
A184: 181 | B184: 0 | C184: =+Input!C184 -> 0 | D184: =+Input!D184 -> 0 | E184: =+Input!E184 -> 0 | F184: =+Input!F184 -> 0 | G184: =+Input!G184 -> 0 | H184: =+Input!H184 -> 0 | I184: =+Input!I184 -> 0 | J184: =+Input!J184 -> 0
A185: 182 | B185: 2 | C185: =+Input!C185 -> 0 | D185: =+Input!D185 -> 0 | E185: =+Input!E185 -> 0 | F185: =+Input!F185 -> 0 | G185: =+Input!G185 -> 0 | H185: =+Input!H185 -> 0 | I185: =+Input!I185 -> 0 | J185: =+Input!J185 -> 0
A186: 183 | B186: 0 | C186: =+Input!C186 -> 0 | D186: =+Input!D186 -> 0 | E186: =+Input!E186 -> 0 | F186: =+Input!F186 -> 0 | G186: =+Input!G186 -> 0 | H186: =+Input!H186 -> 0 | I186: =+Input!I186 -> 0 | J186: =+Input!J186 -> 0
A187: 184 | B187: 0 | C187: =+Input!C187 -> 0 | D187: =+Input!D187 -> 0 | E187: =+Input!E187 -> 0 | F187: =+Input!F187 -> 0 | G187: =+Input!G187 -> 0 | H187: =+Input!H187 -> 0 | I187: =+Input!I187 -> 0 | J187: =+Input!J187 -> 0
A188: 185 | B188: 0 | C188: =+Input!C188 -> 0 | D188: =+Input!D188 -> 0 | E188: =+Input!E188 -> 0 | F188: =+Input!F188 -> 0 | G188: =+Input!G188 -> 0 | H188: =+Input!H188 -> 0 | I188: =+Input!I188 -> 0 | J188: =+Input!J188 -> 0
A189: 186 | B189: 0 | C189: =+Input!C189 -> 0 | D189: =+Input!D189 -> 0 | E189: =+Input!E189 -> 0 | F189: =+Input!F189 -> 0 | G189: =+Input!G189 -> 0 | H189: =+Input!H189 -> 0 | I189: =+Input!I189 -> 0 | J189: =+Input!J189 -> 0
A190: 187 | B190: 0 | C190: =+Input!C190 -> 0 | D190: =+Input!D190 -> 0 | E190: =+Input!E190 -> 0 | F190: =+Input!F190 -> 0 | G190: =+Input!G190 -> 0 | H190: =+Input!H190 -> 0 | I190: =+Input!I190 -> 0 | J190: =+Input!J190 -> 0
A191: 188 | B191: 3 | C191: =+Input!C191 -> 0 | D191: =+Input!D191 -> 0 | E191: =+Input!E191 -> 0 | F191: =+Input!F191 -> 0 | G191: =+Input!G191 -> 0 | H191: =+Input!H191 -> 0 | I191: =+Input!I191 -> 0 | J191: =+Input!J191 -> 0
A192: 189 | B192: 0 | C192: =+Input!C192 -> 0 | D192: =+Input!D192 -> 0 | E192: =+Input!E192 -> 0 | F192: =+Input!F192 -> 0 | G192: =+Input!G192 -> 0 | H192: =+Input!H192 -> 0 | I192: =+Input!I192 -> 0 | J192: =+Input!J192 -> 0
A193: 190 | B193: 0 | C193: =+Input!C193 -> 0 | D193: =+Input!D193 -> 0 | E193: =+Input!E193 -> 0 | F193: =+Input!F193 -> 0 | G193: =+Input!G193 -> 0 | H193: =+Input!H193 -> 0 | I193: =+Input!I193 -> 0 | J193: =+Input!J193 -> 0
A194: 191 | B194: 0 | C194: =+Input!C194 -> 0 | D194: =+Input!D194 -> 0 | E194: =+Input!E194 -> 0 | F194: =+Input!F194 -> 0 | G194: =+Input!G194 -> 0 | H194: =+Input!H194 -> 0 | I194: =+Input!I194 -> 0 | J194: =+Input!J194 -> 0
A195: 192 | B195: 0 | C195: =+Input!C195 -> 0 | D195: =+Input!D195 -> 0 | E195: =+Input!E195 -> 0 | F195: =+Input!F195 -> 0 | G195: =+Input!G195 -> 0 | H195: =+Input!H195 -> 0 | I195: =+Input!I195 -> 0 | J195: =+Input!J195 -> 0
A196: 193 | B196: 0 | C196: =+Input!C196 -> 0 | D196: =+Input!D196 -> 0 | E196: =+Input!E196 -> 0 | F196: =+Input!F196 -> 0 | G196: =+Input!G196 -> 0 | H196: =+Input!H196 -> 0 | I196: =+Input!I196 -> 0 | J196: =+Input!J196 -> 0
A197: 194 | B197: 4 | C197: =+Input!C197 -> 0 | D197: =+Input!D197 -> 0 | E197: =+Input!E197 -> 0 | F197: =+Input!F197 -> 0 | G197: =+Input!G197 -> 0 | H197: =+Input!H197 -> 0 | I197: =+Input!I197 -> 0 | J197: =+Input!J197 -> 0
A198: 195 | B198: 0 | C198: =+Input!C198 -> 0 | D198: =+Input!D198 -> 0 | E198: =+Input!E198 -> 0 | F198: =+Input!F198 -> 0 | G198: =+Input!G198 -> 0 | H198: =+Input!H198 -> 0 | I198: =+Input!I198 -> 0 | J198: =+Input!J198 -> 0
A199: 196 | B199: 0 | C199: =+Input!C199 -> 0 | D199: =+Input!D199 -> 0 | E199: =+Input!E199 -> 0 | F199: =+Input!F199 -> 0 | G199: =+Input!G199 -> 0 | H199: =+Input!H199 -> 0 | I199: =+Input!I199 -> 0 | J199: =+Input!J199 -> 0
A200: 197 | B200: 0 | C200: =+Input!C200 -> 0 | D200: =+Input!D200 -> 0 | E200: =+Input!E200 -> 0 | F200: =+Input!F200 -> 0 | G200: =+Input!G200 -> 0 | H200: =+Input!H200 -> 0 | I200: =+Input!I200 -> 0 | J200: =+Input!J200 -> 0
... 313 more rows

Sheet Diameter
A1: Diameter (mm)
A2: Dates | B2: =+Summary!B5 -> 2015-05-18 | C2: =+Summary!B6 -> 2015-05-21 | D2: =+Summary!B7 -> 2015-05-25 | E2: =+Summary!B8 -> 2015-05-28 | F2: =+Summary!B9 -> 2015-05-31 | G2: =+Summary!B10 -> 2015-06-03 | H2: =+Summary!B11 -> 2015-06-06
A3: Number | B3: =+Summary!A5 -> 1 | C3: =+Summary!A6 -> 2 | D3: =+C3+1 -> 3 | E3: =+D3+1 -> 4 | F3: =+E3+1 -> 5 | G3: =+F3+1 -> 6 | H3: =+G3+1 -> 7
A4: Diameter (mm)
A5: Mean Largest 20 Fruitlets | B5: =+DAVERAGE(Large20,"1Size",B10:B11) -> 3.534 | C5: =+DAVERAGE(Large20,"2Size",C10:C11) -> 3.9905 | D5: =+DAVERAGE(Large20,"3Size",D10:D11) -> 4.863 | E5: =+DAVERAGE(Large20,"4Size",E10:E11) -> 7.715333333 | F5: =+DAVERAGE(Large20,"5Size",F10:F11) ->  | G5: =+DAVERAGE(Large20,"6Size",G10:G11) ->  | H5: =+DAVERAGE(Large20,"7Size",H10:H11) -> 
A6: Mean all Fruitlet Diameter | B6: =+SUM(Staging!D4:D513)/COUNTIF(Staging!D4:D513,">0") -> 2.923333333 | C6: =+SUM(Staging!E4:E513)/COUNTIF(Staging!E4:E513,">0") -> 3.165753425 | D6: =+SUM(Staging!F4:F513)/COUNTIF(Staging!F4:F513,">0") -> 3.461296296 | E6: =+SUM(Staging!G4:G513)/COUNTIF(Staging!G4:G513,">0") -> 7.715333333 | F6: =+SUM(Staging!H4:H513)/COUNTIF(Staging!H4:H513,">0") ->  | G6: =+SUM(Staging!I4:I513)/COUNTIF(Staging!I4:I513,">0") ->  | H6: =+SUM(Staging!J4:J513)/COUNTIF(Staging!J4:J513,">0") -> 
A7: Number of Fruit
A8: Measured | B8: =+DCOUNT(DiaSorted,"1Size",B10:B11) -> 75 | C8: =+DCOUNT(DiaSorted,"2Size",C10:C11) -> 73 | D8: =+DCOUNT(DiaSorted,"3Size",D10:D11) -> 54 | E8: =+DCOUNT(DiaSorted,"4Size",E10:E11) -> 15 | F8: =+DCOUNT(DiaSorted,"5Size",F10:F11) -> 0 | G8: =+DCOUNT(DiaSorted,"6Size",G10:G11) -> 0 | H8: =+DCOUNT(DiaSorted,"7Size",H10:H11) -> 0
A10: Apple | B10: 1Size | C10: 2Size | D10: 3Size | E10: 4Size | F10: 5Size | G10: 6Size | H10: 7Size
A11: >0 | B11: >0 | C11: >0 | D11: >0 | E11: >0 | F11: >0 | G11: >0 | H11: >0
A12: Apple | B12: 1Size | C12: 2Size | D12: 3Size | E12: 4Size | F12: 5Size | G12: 6Size | H12: 7Size
A13: 1 | B13: 4.85 | C13: 5.76 | D13: 8.19 | E13: 12.51 | F13: 0 | G13: 0 | H13: 0
A14: 2 | B14: 4.34 | C14: 5.3 | D14: 6.96 | E14: 10.38 | F14: 0 | G14: 0 | H14: 0
A15: 3 | B15: 4.22 | C15: 4.83 | D15: 6.07 | E15: 9.31 | F15: 0 | G15: 0 | H15: 0
A16: 4 | B16: 3.87 | C16: 4.7 | D16: 5.87 | E16: 9.07 | F16: 0 | G16: 0 | H16: 0
A17: 5 | B17: 3.82 | C17: 4.51 | D17: 5.45 | E17: 8.14 | F17: 0 | G17: 0 | H17: 0
A18: 6 | B18: 3.76 | C18: 4.1 | D18: 5.43 | E18: 8.11 | F18: 0 | G18: 0 | H18: 0
A19: 7 | B19: 3.73 | C19: 4.08 | D19: 5.43 | E19: 8.04 | F19: 0 | G19: 0 | H19: 0
A20: 8 | B20: 3.67 | C20: 3.99 | D20: 5.19 | E20: 8.02 | F20: 0 | G20: 0 | H20: 0
A21: 9 | B21: 3.32 | C21: 3.97 | D21: 5.11 | E21: 7.99 | F21: 0 | G21: 0 | H21: 0
A22: 10 | B22: 3.29 | C22: 3.72 | D22: 4.95 | E22: 7.99 | F22: 0 | G22: 0 | H22: 0
A23: 11 | B23: 3.28 | C23: 3.66 | D23: 4.81 | E23: 7.42 | F23: 0 | G23: 0 | H23: 0
A24: 12 | B24: 3.26 | C24: 3.63 | D24: 4.38 | E24: 6.31 | F24: 0 | G24: 0 | H24: 0
A25: 13 | B25: 3.24 | C25: 3.57 | D25: 4.24 | E25: 4.42 | F25: 0 | G25: 0 | H25: 0
A26: 14 | B26: 3.22 | C26: 3.54 | D26: 4.23 | E26: 4.13 | F26: 0 | G26: 0 | H26: 0
A27: 15 | B27: 3.21 | C27: 3.45 | D27: 3.77 | E27: 3.89 | F27: 0 | G27: 0 | H27: 0
A28: 16 | B28: 3.16 | C28: 3.45 | D28: 3.72 | E28: 0 | F28: 0 | G28: 0 | H28: 0
A29: 17 | B29: 3.14 | C29: 3.43 | D29: 3.47 | E29: 0 | F29: 0 | G29: 0 | H29: 0
A30: 18 | B30: 3.1 | C30: 3.39 | D30: 3.45 | E30: 0 | F30: 0 | G30: 0 | H30: 0
A31: 19 | B31: 3.1 | C31: 3.37 | D31: 3.27 | E31: 0 | F31: 0 | G31: 0 | H31: 0
A32: 20 | B32: 3.1 | C32: 3.36 | D32: 3.27 | E32: 0 | F32: 0 | G32: 0 | H32: 0
A33: 21 | B33: 3.05 | C33: 3.33 | D33: 3.24 | E33: 0 | F33: 0 | G33: 0 | H33: 0
A34: 22 | B34: 3.04 | C34: 3.32 | D34: 3.09 | E34: 0 | F34: 0 | G34: 0 | H34: 0
A35: 23 | B35: 3.04 | C35: 3.27 | D35: 3.04 | E35: 0 | F35: 0 | G35: 0 | H35: 0
A36: 24 | B36: 3 | C36: 3.22 | D36: 3.04 | E36: 0 | F36: 0 | G36: 0 | H36: 0
A37: 25 | B37: 3 | C37: 3.22 | D37: 3.02 | E37: 0 | F37: 0 | G37: 0 | H37: 0
A38: 26 | B38: 2.99 | C38: 3.21 | D38: 3.02 | E38: 0 | F38: 0 | G38: 0 | H38: 0
A39: 27 | B39: 2.98 | C39: 3.21 | D39: 3.01 | E39: 0 | F39: 0 | G39: 0 | H39: 0
A40: 28 | B40: 2.96 | C40: 3.21 | D40: 2.98 | E40: 0 | F40: 0 | G40: 0 | H40: 0
A41: 29 | B41: 2.96 | C41: 3.2 | D41: 2.96 | E41: 0 | F41: 0 | G41: 0 | H41: 0
A42: 30 | B42: 2.93 | C42: 3.17 | D42: 2.9 | E42: 0 | F42: 0 | G42: 0 | H42: 0
A43: 31 | B43: 2.93 | C43: 3.16 | D43: 2.87 | E43: 0 | F43: 0 | G43: 0 | H43: 0
A44: 32 | B44: 2.9 | C44: 3.15 | D44: 2.84 | E44: 0 | F44: 0 | G44: 0 | H44: 0
A45: 33 | B45: 2.89 | C45: 3.14 | D45: 2.83 | E45: 0 | F45: 0 | G45: 0 | H45: 0
A46: 34 | B46: 2.88 | C46: 3.11 | D46: 2.82 | E46: 0 | F46: 0 | G46: 0 | H46: 0
A47: 35 | B47: 2.87 | C47: 3.08 | D47: 2.79 | E47: 0 | F47: 0 | G47: 0 | H47: 0
A48: 36 | B48: 2.87 | C48: 3.08 | D48: 2.75 | E48: 0 | F48: 0 | G48: 0 | H48: 0
A49: 37 | B49: 2.86 | C49: 3.05 | D49: 2.73 | E49: 0 | F49: 0 | G49: 0 | H49: 0
A50: 38 | B50: 2.82 | C50: 3.05 | D50: 2.7 | E50: 0 | F50: 0 | G50: 0 | H50: 0
A51: 39 | B51: 2.82 | C51: 3.02 | D51: 2.62 | E51: 0 | F51: 0 | G51: 0 | H51: 0
A52: 40 | B52: 2.8 | C52: 3 | D52: 2.61 | E52: 0 | F52: 0 | G52: 0 | H52: 0
A53: 41 | B53: 2.8 | C53: 3 | D53: 2.56 | E53: 0 | F53: 0 | G53: 0 | H53: 0
A54: 42 | B54: 2.8 | C54: 2.99 | D54: 2.55 | E54: 0 | F54: 0 | G54: 0 | H54: 0
A55: 43 | B55: 2.79 | C55: 2.99 | D55: 2.5 | E55: 0 | F55: 0 | G55: 0 | H55: 0
A56: 44 | B56: 2.79 | C56: 2.92 | D56: 2.49 | E56: 0 | F56: 0 | G56: 0 | H56: 0
A57: 45 | B57: 2.78 | C57: 2.9 | D57: 2.47 | E57: 0 | F57: 0 | G57: 0 | H57: 0
A58: 46 | B58: 2.78 | C58: 2.89 | D58: 2.44 | E58: 0 | F58: 0 | G58: 0 | H58: 0
A59: 47 | B59: 2.75 | C59: 2.87 | D59: 2.36 | E59: 0 | F59: 0 | G59: 0 | H59: 0
A60: 48 | B60: 2.72 | C60: 2.84 | D60: 2.34 | E60: 0 | F60: 0 | G60: 0 | H60: 0
A61: 49 | B61: 2.72 | C61: 2.84 | D61: 2.34 | E61: 0 | F61: 0 | G61: 0 | H61: 0
A62: 50 | B62: 2.72 | C62: 2.83 | D62: 2.19 | E62: 0 | F62: 0 | G62: 0 | H62: 0
A63: 51 | B63: 2.7 | C63: 2.82 | D63: 2.05 | E63: 0 | F63: 0 | G63: 0 | H63: 0
A64: 52 | B64: 2.7 | C64: 2.82 | D64: 1.86 | E64: 0 | F64: 0 | G64: 0 | H64: 0
A65: 53 | B65: 2.7 | C65: 2.81 | D65: 1.86 | E65: 0 | F65: 0 | G65: 0 | H65: 0
A66: 54 | B66: 2.69 | C66: 2.79 | D66: 1.78 | E66: 0 | F66: 0 | G66: 0 | H66: 0
A67: 55 | B67: 2.67 | C67: 2.77 | D67: 0 | E67: 0 | F67: 0 | G67: 0 | H67: 0
A68: 56 | B68: 2.64 | C68: 2.76 | D68: 0 | E68: 0 | F68: 0 | G68: 0 | H68: 0
A69: 57 | B69: 2.64 | C69: 2.75 | D69: 0 | E69: 0 | F69: 0 | G69: 0 | H69: 0
A70: 58 | B70: 2.63 | C70: 2.75 | D70: 0 | E70: 0 | F70: 0 | G70: 0 | H70: 0
A71: 59 | B71: 2.63 | C71: 2.74 | D71: 0 | E71: 0 | F71: 0 | G71: 0 | H71: 0
A72: 60 | B72: 2.61 | C72: 2.74 | D72: 0 | E72: 0 | F72: 0 | G72: 0 | H72: 0
A73: 61 | B73: 2.57 | C73: 2.72 | D73: 0 | E73: 0 | F73: 0 | G73: 0 | H73: 0
A74: 62 | B74: 2.56 | C74: 2.7 | D74: 0 | E74: 0 | F74: 0 | G74: 0 | H74: 0
A75: 63 | B75: 2.53 | C75: 2.63 | D75: 0 | E75: 0 | F75: 0 | G75: 0 | H75: 0
A76: 64 | B76: 2.53 | C76: 2.63 | D76: 0 | E76: 0 | F76: 0 | G76: 0 | H76: 0
A77: 65 | B77: 2.49 | C77: 2.6 | D77: 0 | E77: 0 | F77: 0 | G77: 0 | H77: 0
A78: 66 | B78: 2.49 | C78: 2.59 | D78: 0 | E78: 0 | F78: 0 | G78: 0 | H78: 0
A79: 67 | B79: 2.43 | C79: 2.51 | D79: 0 | E79: 0 | F79: 0 | G79: 0 | H79: 0
A80: 68 | B80: 2.41 | C80: 2.49 | D80: 0 | E80: 0 | F80: 0 | G80: 0 | H80: 0
A81: 69 | B81: 2.39 | C81: 2.17 | D81: 0 | E81: 0 | F81: 0 | G81: 0 | H81: 0
A82: 70 | B82: 2.39 | C82: 2.16 | D82: 0 | E82: 0 | F82: 0 | G82: 0 | H82: 0
A83: 71 | B83: 2.34 | C83: 2.1 | D83: 0 | E83: 0 | F83: 0 | G83: 0 | H83: 0
A84: 72 | B84: 2.21 | C84: 2.08 | D84: 0 | E84: 0 | F84: 0 | G84: 0 | H84: 0
A85: 73 | B85: 2.21 | C85: 1.89 | D85: 0 | E85: 0 | F85: 0 | G85: 0 | H85: 0
A86: 74 | B86: 2.13 | C86: 0 | D86: 0 | E86: 0 | F86: 0 | G86: 0 | H86: 0
A87: 75 | B87: 2.04 | C87: 0 | D87: 0 | E87: 0 | F87: 0 | G87: 0 | H87: 0
A88: 76 | B88: 0 | C88: 0 | D88: 0 | E88: 0 | F88: 0 | G88: 0 | H88: 0
A89: 77 | B89: 0 | C89: 0 | D89: 0 | E89: 0 | F89: 0 | G89: 0 | H89: 0
A90: 78 | B90: 0 | C90: 0 | D90: 0 | E90: 0 | F90: 0 | G90: 0 | H90: 0
A91: 79 | B91: 0 | C91: 0 | D91: 0 | E91: 0 | F91: 0 | G91: 0 | H91: 0
A92: 80 | B92: 0 | C92: 0 | D92: 0 | E92: 0 | F92: 0 | G92: 0 | H92: 0
A93: 81 | B93: 0 | C93: 0 | D93: 0 | E93: 0 | F93: 0 | G93: 0 | H93: 0
A94: 82 | B94: 0 | C94: 0 | D94: 0 | E94: 0 | F94: 0 | G94: 0 | H94: 0
A95: 83 | B95: 0 | C95: 0 | D95: 0 | E95: 0 | F95: 0 | G95: 0 | H95: 0
A96: 84 | B96: 0 | C96: 0 | D96: 0 | E96: 0 | F96: 0 | G96: 0 | H96: 0
A97: 85 | B97: 0 | C97: 0 | D97: 0 | E97: 0 | F97: 0 | G97: 0 | H97: 0
A98: 86 | B98: 0 | C98: 0 | D98: 0 | E98: 0 | F98: 0 | G98: 0 | H98: 0
A99: 87 | B99: 0 | C99: 0 | D99: 0 | E99: 0 | F99: 0 | G99: 0 | H99: 0
A100: 88 | B100: 0 | C100: 0 | D100: 0 | E100: 0 | F100: 0 | G100: 0 | H100: 0
A101: 89 | B101: 0 | C101: 0 | D101: 0 | E101: 0 | F101: 0 | G101: 0 | H101: 0
A102: 90 | B102: 0 | C102: 0 | D102: 0 | E102: 0 | F102: 0 | G102: 0 | H102: 0
A103: 91 | B103: 0 | C103: 0 | D103: 0 | E103: 0 | F103: 0 | G103: 0 | H103: 0
A104: 92 | B104: 0 | C104: 0 | D104: 0 | E104: 0 | F104: 0 | G104: 0 | H104: 0
A105: 93 | B105: 0 | C105: 0 | D105: 0 | E105: 0 | F105: 0 | G105: 0 | H105: 0
A106: 94 | B106: 0 | C106: 0 | D106: 0 | E106: 0 | F106: 0 | G106: 0 | H106: 0
A107: 95 | B107: 0 | C107: 0 | D107: 0 | E107: 0 | F107: 0 | G107: 0 | H107: 0
A108: 96 | B108: 0 | C108: 0 | D108: 0 | E108: 0 | F108: 0 | G108: 0 | H108: 0
A109: 97 | B109: 0 | C109: 0 | D109: 0 | E109: 0 | F109: 0 | G109: 0 | H109: 0
A110: 98 | B110: 0 | C110: 0 | D110: 0 | E110: 0 | F110: 0 | G110: 0 | H110: 0
A111: 99 | B111: 0 | C111: 0 | D111: 0 | E111: 0 | F111: 0 | G111: 0 | H111: 0
A112: 100 | B112: 0 | C112: 0 | D112: 0 | E112: 0 | F112: 0 | G112: 0 | H112: 0
A113: 101 | B113: 0 | C113: 0 | D113: 0 | E113: 0 | F113: 0 | G113: 0 | H113: 0
A114: 102 | B114: 0 | C114: 0 | D114: 0 | E114: 0 | F114: 0 | G114: 0 | H114: 0
A115: 103 | B115: 0 | C115: 0 | D115: 0 | E115: 0 | F115: 0 | G115: 0 | H115: 0
A116: 104 | B116: 0 | C116: 0 | D116: 0 | E116: 0 | F116: 0 | G116: 0 | H116: 0
A117: 105 | B117: 0 | C117: 0 | D117: 0 | E117: 0 | F117: 0 | G117: 0 | H117: 0
A118: 106 | B118: 0 | C118: 0 | D118: 0 | E118: 0 | F118: 0 | G118: 0 | H118: 0
A119: 107 | B119: 0 | C119: 0 | D119: 0 | E119: 0 | F119: 0 | G119: 0 | H119: 0
A120: 108 | B120: 0 | C120: 0 | D120: 0 | E120: 0 | F120: 0 | G120: 0 | H120: 0
A121: 109 | B121: 0 | C121: 0 | D121: 0 | E121: 0 | F121: 0 | G121: 0 | H121: 0
A122: 110 | B122: 0 | C122: 0 | D122: 0 | E122: 0 | F122: 0 | G122: 0 | H122: 0
A123: 111 | B123: 0 | C123: 0 | D123: 0 | E123: 0 | F123: 0 | G123: 0 | H123: 0
A124: 112 | B124: 0 | C124: 0 | D124: 0 | E124: 0 | F124: 0 | G124: 0 | H124: 0
A125: 113 | B125: 0 | C125: 0 | D125: 0 | E125: 0 | F125: 0 | G125: 0 | H125: 0
A126: 114 | B126: 0 | C126: 0 | D126: 0 | E126: 0 | F126: 0 | G126: 0 | H126: 0
A127: 115 | B127: 0 | C127: 0 | D127: 0 | E127: 0 | F127: 0 | G127: 0 | H127: 0
A128: 116 | B128: 0 | C128: 0 | D128: 0 | E128: 0 | F128: 0 | G128: 0 | H128: 0
A129: 117 | B129: 0 | C129: 0 | D129: 0 | E129: 0 | F129: 0 | G129: 0 | H129: 0
A130: 118 | B130: 0 | C130: 0 | D130: 0 | E130: 0 | F130: 0 | G130: 0 | H130: 0
A131: 119 | B131: 0 | C131: 0 | D131: 0 | E131: 0 | F131: 0 | G131: 0 | H131: 0
A132: 120 | B132: 0 | C132: 0 | D132: 0 | E132: 0 | F132: 0 | G132: 0 | H132: 0
A133: 121 | B133: 0 | C133: 0 | D133: 0 | E133: 0 | F133: 0 | G133: 0 | H133: 0
A134: 122 | B134: 0 | C134: 0 | D134: 0 | E134: 0 | F134: 0 | G134: 0 | H134: 0
A135: 123 | B135: 0 | C135: 0 | D135: 0 | E135: 0 | F135: 0 | G135: 0 | H135: 0
A136: 124 | B136: 0 | C136: 0 | D136: 0 | E136: 0 | F136: 0 | G136: 0 | H136: 0
A137: 125 | B137: 0 | C137: 0 | D137: 0 | E137: 0 | F137: 0 | G137: 0 | H137: 0
A138: 126 | B138: 0 | C138: 0 | D138: 0 | E138: 0 | F138: 0 | G138: 0 | H138: 0
A139: 127 | B139: 0 | C139: 0 | D139: 0 | E139: 0 | F139: 0 | G139: 0 | H139: 0
A140: 128 | B140: 0 | C140: 0 | D140: 0 | E140: 0 | F140: 0 | G140: 0 | H140: 0
A141: 129 | B141: 0 | C141: 0 | D141: 0 | E141: 0 | F141: 0 | G141: 0 | H141: 0
A142: 130 | B142: 0 | C142: 0 | D142: 0 | E142: 0 | F142: 0 | G142: 0 | H142: 0
A143: 131 | B143: 0 | C143: 0 | D143: 0 | E143: 0 | F143: 0 | G143: 0 | H143: 0
A144: 132 | B144: 0 | C144: 0 | D144: 0 | E144: 0 | F144: 0 | G144: 0 | H144: 0
A145: 133 | B145: 0 | C145: 0 | D145: 0 | E145: 0 | F145: 0 | G145: 0 | H145: 0
A146: 134 | B146: 0 | C146: 0 | D146: 0 | E146: 0 | F146: 0 | G146: 0 | H146: 0
A147: 135 | B147: 0 | C147: 0 | D147: 0 | E147: 0 | F147: 0 | G147: 0 | H147: 0
A148: 136 | B148: 0 | C148: 0 | D148: 0 | E148: 0 | F148: 0 | G148: 0 | H148: 0
A149: 137 | B149: 0 | C149: 0 | D149: 0 | E149: 0 | F149: 0 | G149: 0 | H149: 0
A150: 138 | B150: 0 | C150: 0 | D150: 0 | E150: 0 | F150: 0 | G150: 0 | H150: 0
A151: 139 | B151: 0 | C151: 0 | D151: 0 | E151: 0 | F151: 0 | G151: 0 | H151: 0
A152: 140 | B152: 0 | C152: 0 | D152: 0 | E152: 0 | F152: 0 | G152: 0 | H152: 0
A153: 141 | B153: 0 | C153: 0 | D153: 0 | E153: 0 | F153: 0 | G153: 0 | H153: 0
A154: 142 | B154: 0 | C154: 0 | D154: 0 | E154: 0 | F154: 0 | G154: 0 | H154: 0
A155: 143 | B155: 0 | C155: 0 | D155: 0 | E155: 0 | F155: 0 | G155: 0 | H155: 0
A156: 144 | B156: 0 | C156: 0 | D156: 0 | E156: 0 | F156: 0 | G156: 0 | H156: 0
A157: 145 | B157: 0 | C157: 0 | D157: 0 | E157: 0 | F157: 0 | G157: 0 | H157: 0
A158: 146 | B158: 0 | C158: 0 | D158: 0 | E158: 0 | F158: 0 | G158: 0 | H158: 0
A159: 147 | B159: 0 | C159: 0 | D159: 0 | E159: 0 | F159: 0 | G159: 0 | H159: 0
A160: 148 | B160: 0 | C160: 0 | D160: 0 | E160: 0 | F160: 0 | G160: 0 | H160: 0
A161: 149 | B161: 0 | C161: 0 | D161: 0 | E161: 0 | F161: 0 | G161: 0 | H161: 0
A162: 150 | B162: 0 | C162: 0 | D162: 0 | E162: 0 | F162: 0 | G162: 0 | H162: 0
A163: 151 | B163: 0 | C163: 0 | D163: 0 | E163: 0 | F163: 0 | G163: 0 | H163: 0
A164: 152 | B164: 0 | C164: 0 | D164: 0 | E164: 0 | F164: 0 | G164: 0 | H164: 0
A165: 153 | B165: 0 | C165: 0 | D165: 0 | E165: 0 | F165: 0 | G165: 0 | H165: 0
A166: 154 | B166: 0 | C166: 0 | D166: 0 | E166: 0 | F166: 0 | G166: 0 | H166: 0
A167: 155 | B167: 0 | C167: 0 | D167: 0 | E167: 0 | F167: 0 | G167: 0 | H167: 0
A168: 156 | B168: 0 | C168: 0 | D168: 0 | E168: 0 | F168: 0 | G168: 0 | H168: 0
A169: 157 | B169: 0 | C169: 0 | D169: 0 | E169: 0 | F169: 0 | G169: 0 | H169: 0
A170: 158 | B170: 0 | C170: 0 | D170: 0 | E170: 0 | F170: 0 | G170: 0 | H170: 0
A171: 159 | B171: 0 | C171: 0 | D171: 0 | E171: 0 | F171: 0 | G171: 0 | H171: 0
A172: 160 | B172: 0 | C172: 0 | D172: 0 | E172: 0 | F172: 0 | G172: 0 | H172: 0
A173: 161 | B173: 0 | C173: 0 | D173: 0 | E173: 0 | F173: 0 | G173: 0 | H173: 0
A174: 162 | B174: 0 | C174: 0 | D174: 0 | E174: 0 | F174: 0 | G174: 0 | H174: 0
A175: 163 | B175: 0 | C175: 0 | D175: 0 | E175: 0 | F175: 0 | G175: 0 | H175: 0
A176: 164 | B176: 0 | C176: 0 | D176: 0 | E176: 0 | F176: 0 | G176: 0 | H176: 0
A177: 165 | B177: 0 | C177: 0 | D177: 0 | E177: 0 | F177: 0 | G177: 0 | H177: 0
A178: 166 | B178: 0 | C178: 0 | D178: 0 | E178: 0 | F178: 0 | G178: 0 | H178: 0
A179: 167 | B179: 0 | C179: 0 | D179: 0 | E179: 0 | F179: 0 | G179: 0 | H179: 0
A180: 168 | B180: 0 | C180: 0 | D180: 0 | E180: 0 | F180: 0 | G180: 0 | H180: 0
A181: 169 | B181: 0 | C181: 0 | D181: 0 | E181: 0 | F181: 0 | G181: 0 | H181: 0
A182: 170 | B182: 0 | C182: 0 | D182: 0 | E182: 0 | F182: 0 | G182: 0 | H182: 0
A183: 171 | B183: 0 | C183: 0 | D183: 0 | E183: 0 | F183: 0 | G183: 0 | H183: 0
A184: 172 | B184: 0 | C184: 0 | D184: 0 | E184: 0 | F184: 0 | G184: 0 | H184: 0
A185: 173 | B185: 0 | C185: 0 | D185: 0 | E185: 0 | F185: 0 | G185: 0 | H185: 0
A186: 174 | B186: 0 | C186: 0 | D186: 0 | E186: 0 | F186: 0 | G186: 0 | H186: 0
A187: 175 | B187: 0 | C187: 0 | D187: 0 | E187: 0 | F187: 0 | G187: 0 | H187: 0
A188: 176 | B188: 0 | C188: 0 | D188: 0 | E188: 0 | F188: 0 | G188: 0 | H188: 0
A189: 177 | B189: 0 | C189: 0 | D189: 0 | E189: 0 | F189: 0 | G189: 0 | H189: 0
A190: 178 | B190: 0 | C190: 0 | D190: 0 | E190: 0 | F190: 0 | G190: 0 | H190: 0
A191: 179 | B191: 0 | C191: 0 | D191: 0 | E191: 0 | F191: 0 | G191: 0 | H191: 0
A192: 180 | B192: 0 | C192: 0 | D192: 0 | E192: 0 | F192: 0 | G192: 0 | H192: 0
A193: 181 | B193: 0 | C193: 0 | D193: 0 | E193: 0 | F193: 0 | G193: 0 | H193: 0
A194: 182 | B194: 0 | C194: 0 | D194: 0 | E194: 0 | F194: 0 | G194: 0 | H194: 0
A195: 183 | B195: 0 | C195: 0 | D195: 0 | E195: 0 | F195: 0 | G195: 0 | H195: 0
A196: 184 | B196: 0 | C196: 0 | D196: 0 | E196: 0 | F196: 0 | G196: 0 | H196: 0
A197: 185 | B197: 0 | C197: 0 | D197: 0 | E197: 0 | F197: 0 | G197: 0 | H197: 0
A198: 186 | B198: 0 | C198: 0 | D198: 0 | E198: 0 | F198: 0 | G198: 0 | H198: 0
A199: 187 | B199: 0 | C199: 0 | D199: 0 | E199: 0 | F199: 0 | G199: 0 | H199: 0
A200: 188 | B200: 0 | C200: 0 | D200: 0 | E200: 0 | F200: 0 | G200: 0 | H200: 0
A201: 189 | B201: 0 | C201: 0 | D201: 0 | E201: 0 | F201: 0 | G201: 0 | H201: 0
... 832 more rows

Sheet Count
A1: Count Sheet
A2: Dates | B2: =MONTH(Summary!B5)&"/"&DAY(+Summary!B5)&" - "&MONTH(Summary!B6)&"/"&DAY(+Summary!B6) -> 5/18 - 5/21 | C2: =MONTH(Summary!B6)&"/"&DAY(+Summary!B6)&" - "&MONTH(Summary!B7)&"/"&DAY(+Summary!B7) -> 5/21 - 5/25 | D2: =MONTH(Summary!B7)&"/"&DAY(+Summary!B7)&" - "&MONTH(Summary!B8)&"/"&DAY(+Summary!B8) -> 5/25 - 5/28 | E2: =MONTH(Summary!B8)&"/"&DAY(+Summary!B8)&" - "&MONTH(Summary!B9)&"/"&DAY(+Summary!B9) -> 5/28 - 5/31 | F2: =MONTH(Summary!B9)&"/"&DAY(+Summary!B9)&" - "&MONTH(Summary!B10)&"/"&DAY(+Summary!B10) -> 5/31 - 6/3 | G2: =MONTH(Summary!B10)&"/"&DAY(+Summary!B10)&" - "&MONTH(Summary!B11)&"/"&DAY(+Summary!B11) -> 6/3 - 6/6 | H2: Comment
A3: Number | B3: =+Summary!A6 -> 2 | C3: =+B3+1 -> 3 | D3: =+C3+1 -> 4 | E3: =+D3+1 -> 5 | F3: =+E3+1 -> 6 | G3: =+F3+1 -> 7
A4: Diameter (mm)
A5: Mean Fastest | B5: =+DAVERAGE(DATA20,"1Dia",B12:B13) -> 0.638 | C5: =+DAVERAGE(DATA20,"2Dia",C12:C13) -> 1.046 | D5: =+DAVERAGE(DATA20,"3Dia",D12:D13) -> 2.590714286 | E5: =+DAVERAGE(DATA20,"4Dia",E12:E13) ->  | F5: =+DAVERAGE(DATA20,"5Dia",F12:F13) ->  | G5: =+DAVERAGE(DATA20,"6Dia",G12:G13) ->  | H5: Mean of up to 20 Fastest Growing Fruit
A6: 50% Fastest | B6: =+B5/2 -> 0.319 | C6: 0.523 | D6: 1.295357143 | H6: 50% Diameter Growth of up to 20 Fastest Growing Fruitlets
A7: Number of Fruit
A8: > 0 Growth | B8: =+DCOUNT(DATA100,"1Dia",B12:B13) -> 54 | C8: =+DCOUNT(DATA100,"2Dia",C12:C13) -> 23 | D8: =+DCOUNT(DATA100,"3Dia",D12:D13) -> 14 | E8: =+DCOUNT(DATA100,"4Dia",E12:E13) -> 0 | F8: =+DCOUNT(DATA100,"5Dia",F12:F13) -> 0 | G8: =+DCOUNT(DATA100,"6Dia",G12:G13) -> 0 | H8: # of Fruit with Diameter Growth >0
A9: > 50% | B9: =+DCOUNT(DATA100,"1Dia",B14:B15) -> 26 | C9: =+DCOUNT(DATA100,"2Dia",C14:C15) -> 17 | D9: =+DCOUNT(DATA100,"3Dia",D14:D15) -> 12 | E9: =+DCOUNT(DATA100,"4Dia",E14:E15) -> 0 | F9: =+DCOUNT(DATA100,"5Dia",F14:F15) -> 0 | G9: =+DCOUNT(DATA100,"6Dia",G14:G15) -> 0 | H9: # of Fruit Diameter Growth >50% of Fastest
A10: < 50% | B10: =+B11-B9 -> 49 | C10: 56 | D10: 42 | E10: 15 | F10: 0 | G10: 0 | H10: # of Fruit Diameter Growth <50% of Fastest
A11: Total | B11: =+Diameter!B8 -> 75 | C11: =+Diameter!C8 -> 73 | D11: =+Diameter!D8 -> 54 | E11: =+Diameter!E8 -> 15 | F11: =+Diameter!F8 -> 0 | G11: =+Diameter!G8 -> 0 | H11: Total # of Fruitlets Measured
A12: Apple | B12: 1Dia | C12: 2Dia | D12: 3Dia | E12: 4Dia | F12: 5Dia | G12: 6Dia
A13: >0 | B13: >0 | C13: >0 | D13: >0 | E13: >0 | F13: >0 | G13: >0
A14: Apple | B14: 1Dia | C14: 2Dia | D14: 3Dia | E14: 4Dia | F14: 5Dia | G14: 6Dia
A15: >50% | B15: =+">"&TEXT(B6,".000") -> >.319 | C15: >.523 | D15: >1.295
A16: Apple | B16: 1Dia | C16: 2Dia | D16: 3Dia | E16: 4Dia | F16: 5Dia | G16: 6Dia | I16: 3Dia | J16: 2Dia
A17: 1 | B17: 1.03 | C17: 2.43 | D17: 4.32 | E17: 0 | F17: 0 | G17: 0 | I17: =+D17 -> 4.32 | J17: =+C17 -> 2.43
A18: 2 | B18: 0.96 | C18: 1.66 | D18: 3.42 | E18: 0 | F18: 0 | G18: 0 | I18: 3.42 | J18: 1.66
A19: 3 | B19: 0.91 | C19: 1.39 | D19: 3.24 | E19: 0 | F19: 0 | G19: 0 | I19: 3.24 | J19: 1.39
A20: 4 | B20: 0.79 | C20: 1.38 | D20: 3.2 | E20: 0 | F20: 0 | G20: 0 | I20: 3.2 | J20: 1.38
A21: 5 | B21: 0.79 | C21: 1.36 | D21: 3.18 | E21: 0 | F21: 0 | G21: 0 | I21: 3.18 | J21: 1.36
A22: 6 | B22: 0.75 | C22: 1.35 | D22: 3.07 | E22: 0 | F22: 0 | G22: 0 | I22: 3.07 | J22: 1.35
A23: 7 | B23: 0.73 | C23: 1.33 | D23: 2.93 | E23: 0 | F23: 0 | G23: 0 | I23: 2.93 | J23: 1.33
A24: 8 | B24: 0.72 | C24: 1.24 | D24: 2.8 | E24: 0 | F24: 0 | G24: 0 | I24: 2.8 | J24: 1.24
A25: 9 | B25: 0.61 | C25: 1.22 | D25: 2.71 | E25: 0 | F25: 0 | G25: 0 | I25: 2.71 | J25: 1.22
A26: 10 | B26: 0.59 | C26: 1.17 | D26: 2.68 | E26: 0 | F26: 0 | G26: 0 | I26: 2.68 | J26: 1.17
A27: 11 | B27: 0.58 | C27: 0.94 | D27: 2.59 | E27: 0 | F27: 0 | G27: 0 | I27: 2.59 | J27: 0.94
A28: 12 | B28: 0.53 | C28: 0.89 | D28: 1.97 | E28: 0 | F28: 0 | G28: 0 | I28: 1.97 | J28: 0.89
A29: 13 | B29: 0.53 | C29: 0.84 | D29: 0.12 | E29: 0 | F29: 0 | G29: 0 | I29: 0.12 | J29: 0.84
A30: 14 | B30: 0.5 | C30: 0.82 | D30: 0.04 | E30: 0 | F30: 0 | G30: 0 | I30: 0.04 | J30: 0.82
A31: 15 | B31: 0.49 | C31: 0.79 | D31: 0 | E31: 0 | F31: 0 | G31: 0 | I31: 0 | J31: 0.79
A32: 16 | B32: 0.48 | C32: 0.65 | D32: 0 | E32: 0 | F32: 0 | G32: 0 | I32: 0 | J32: 0.65
A33: 17 | B33: 0.45 | C33: 0.59 | D33: 0 | E33: 0 | F33: 0 | G33: 0 | I33: 0 | J33: 0.59
A34: 18 | B34: 0.45 | C34: 0.39 | D34: 0 | E34: 0 | F34: 0 | G34: 0 | I34: 0 | J34: 0.39
A35: 19 | B35: 0.44 | C35: 0.27 | D35: 0 | E35: 0 | F35: 0 | G35: 0 | I35: 0 | J35: 0.27
A36: 20 | B36: 0.43 | C36: 0.21 | D36: 0 | E36: 0 | F36: 0 | G36: 0 | I36: 0 | J36: 0.21
A37: 21 | B37: 0.43 | C37: 0.18 | D37: 0 | E37: 0 | F37: 0 | G37: 0 | I37: 0 | J37: 0.18
A38: 22 | B38: 0.41 | C38: 0.11 | D38: 0 | E38: 0 | F38: 0 | G38: 0 | I38: 0 | J38: 0.11
A39: 23 | B39: 0.35 | C39: 0.1 | D39: 0 | E39: 0 | F39: 0 | G39: 0 | I39: 0 | J39: 0.1
A40: 24 | B40: 0.35 | C40: 0 | D40: 0 | E40: 0 | F40: 0 | G40: 0 | I40: 0 | J40: 0
A41: 25 | B41: 0.34 | C41: 0 | D41: 0 | E41: 0 | F41: 0 | G41: 0 | I41: 0 | J41: 0
A42: 26 | B42: 0.33 | C42: 0 | D42: 0 | E42: 0 | F42: 0 | G42: 0 | I42: 0 | J42: 0
A43: 27 | B43: 0.31 | C43: 0 | D43: 0 | E43: 0 | F43: 0 | G43: 0 | I43: 0 | J43: 0
A44: 28 | B44: 0.31 | C44: 0 | D44: 0 | E44: 0 | F44: 0 | G44: 0 | I44: 0 | J44: 0
A45: 29 | B45: 0.3 | C45: 0 | D45: 0 | E45: 0 | F45: 0 | G45: 0 | I45: 0 | J45: 0
A46: 30 | B46: 0.28 | C46: 0 | D46: 0 | E46: 0 | F46: 0 | G46: 0 | I46: 0 | J46: 0
A47: 31 | B47: 0.28 | C47: 0 | D47: 0 | E47: 0 | F47: 0 | G47: 0 | I47: 0 | J47: 0
A48: 32 | B48: 0.26 | C48: 0 | D48: 0 | E48: 0 | F48: 0 | G48: 0 | I48: 0 | J48: 0
A49: 33 | B49: 0.25 | C49: 0 | D49: 0 | E49: 0 | F49: 0 | G49: 0 | I49: 0 | J49: 0
A50: 34 | B50: 0.24 | C50: 0 | D50: 0 | E50: 0 | F50: 0 | G50: 0 | I50: 0 | J50: 0
A51: 35 | B51: 0.24 | C51: 0 | D51: 0 | E51: 0 | F51: 0 | G51: 0 | I51: 0 | J51: 0
A52: 36 | B52: 0.23 | C52: 0 | D52: 0 | E52: 0 | F52: 0 | G52: 0 | I52: 0 | J52: 0
A53: 37 | B53: 0.22 | C53: 0 | D53: 0 | E53: 0 | F53: 0 | G53: 0 | I53: 0 | J53: 0
A54: 38 | B54: 0.21 | C54: 0 | D54: 0 | E54: 0 | F54: 0 | G54: 0 | I54: 0 | J54: 0
A55: 39 | B55: 0.2 | C55: 0 | D55: 0 | E55: 0 | F55: 0 | G55: 0 | I55: 0 | J55: 0
A56: 40 | B56: 0.2 | C56: 0 | D56: 0 | E56: 0 | F56: 0 | G56: 0 | I56: 0 | J56: 0
A57: 41 | B57: 0.19 | C57: 0 | D57: 0 | E57: 0 | F57: 0 | G57: 0 | I57: 0 | J57: 0
A58: 42 | B58: 0.18 | C58: 0 | D58: 0 | E58: 0 | F58: 0 | G58: 0 | I58: =+D58 -> 0 | J58: 0
A59: 43 | B59: 0.13 | C59: 0 | D59: 0 | E59: 0 | F59: 0 | G59: 0
A60: 44 | B60: 0.13 | C60: 0 | D60: 0 | E60: 0 | F60: 0 | G60: 0
A61: 45 | B61: 0.12 | C61: 0 | D61: 0 | E61: 0 | F61: 0 | G61: 0
A62: 46 | B62: 0.12 | C62: 0 | D62: 0 | E62: 0 | F62: 0 | G62: 0
A63: 47 | B63: 0.1 | C63: 0 | D63: 0 | E63: 0 | F63: 0 | G63: 0
A64: 48 | B64: 0.1 | C64: 0 | D64: 0 | E64: 0 | F64: 0 | G64: 0
A65: 49 | B65: 0.07 | C65: 0 | D65: 0 | E65: 0 | F65: 0 | G65: 0
A66: 50 | B66: 0.07 | C66: 0 | D66: 0 | E66: 0 | F66: 0 | G66: 0
A67: 51 | B67: 0.05 | C67: 0 | D67: 0 | E67: 0 | F67: 0 | G67: 0
A68: 52 | B68: 0.05 | C68: 0 | D68: 0 | E68: 0 | F68: 0 | G68: 0
A69: 53 | B69: 0.03 | C69: 0 | D69: 0 | E69: 0 | F69: 0 | G69: 0
A70: 54 | B70: 0.01 | C70: 0 | D70: 0 | E70: 0 | F70: 0 | G70: 0
A71: 55 | B71: 0 | C71: 0 | D71: 0 | E71: 0 | F71: 0 | G71: 0
A72: 56 | B72: 0 | C72: 0 | D72: 0 | E72: 0 | F72: 0 | G72: 0
A73: 57 | B73: 0 | C73: 0 | D73: 0 | E73: 0 | F73: 0 | G73: 0
A74: 58 | B74: 0 | C74: 0 | D74: 0 | E74: 0 | F74: 0 | G74: 0
A75: 59 | B75: 0 | C75: 0 | D75: 0 | E75: 0 | F75: 0 | G75: 0
A76: 60 | B76: 0 | C76: 0 | D76: 0 | E76: 0 | F76: 0 | G76: 0
A77: 61 | B77: 0 | C77: 0 | D77: 0 | E77: 0 | F77: 0 | G77: 0
A78: 62 | B78: 0 | C78: 0 | D78: 0 | E78: 0 | F78: 0 | G78: 0
A79: 63 | B79: 0 | C79: 0 | D79: 0 | E79: 0 | F79: 0 | G79: 0
A80: 64 | B80: 0 | C80: 0 | D80: 0 | E80: 0 | F80: 0 | G80: 0
A81: 65 | B81: 0 | C81: 0 | D81: 0 | E81: 0 | F81: 0 | G81: 0
A82: 66 | B82: 0 | C82: 0 | D82: 0 | E82: 0 | F82: 0 | G82: 0
A83: 67 | B83: 0 | C83: 0 | D83: 0 | E83: 0 | F83: 0 | G83: 0
A84: 68 | B84: 0 | C84: 0 | D84: 0 | E84: 0 | F84: 0 | G84: 0
A85: 69 | B85: 0 | C85: 0 | D85: 0 | E85: 0 | F85: 0 | G85: 0
A86: 70 | B86: 0 | C86: 0 | D86: 0 | E86: 0 | F86: 0 | G86: 0
A87: 71 | B87: 0 | C87: 0 | D87: 0 | E87: 0 | F87: 0 | G87: 0
A88: 72 | B88: 0 | C88: 0 | D88: 0 | E88: 0 | F88: 0 | G88: 0
A89: 73 | B89: 0 | C89: 0 | D89: 0 | E89: 0 | F89: 0 | G89: 0
A90: 74 | B90: 0 | C90: 0 | D90: 0 | E90: 0 | F90: 0 | G90: 0
A91: 75 | B91: 0 | C91: 0 | D91: 0 | E91: 0 | F91: 0 | G91: 0
A92: 76 | B92: 0 | C92: 0 | D92: 0 | E92: 0 | F92: 0 | G92: 0
A93: 77 | B93: 0 | C93: 0 | D93: 0 | E93: 0 | F93: 0 | G93: 0
A94: 78 | B94: 0 | C94: 0 | D94: 0 | E94: 0 | F94: 0 | G94: 0
A95: 79 | B95: 0 | C95: 0 | D95: 0 | E95: 0 | F95: 0 | G95: 0
A96: 80 | B96: 0 | C96: 0 | D96: 0 | E96: 0 | F96: 0 | G96: 0
A97: 81 | B97: 0 | C97: 0 | D97: 0 | E97: 0 | F97: 0 | G97: 0
A98: 82 | B98: 0 | C98: 0 | D98: 0 | E98: 0 | F98: 0 | G98: 0
A99: 83 | B99: 0 | C99: 0 | D99: 0 | E99: 0 | F99: 0 | G99: 0
A100: 84 | B100: 0 | C100: 0 | D100: 0 | E100: 0 | F100: 0 | G100: 0
A101: 85 | B101: 0 | C101: 0 | D101: 0 | E101: 0 | F101: 0 | G101: 0
A102: 86 | B102: 0 | C102: 0 | D102: 0 | E102: 0 | F102: 0 | G102: 0
A103: 87 | B103: 0 | C103: 0 | D103: 0 | E103: 0 | F103: 0 | G103: 0
A104: 88 | B104: 0 | C104: 0 | D104: 0 | E104: 0 | F104: 0 | G104: 0
A105: 89 | B105: 0 | C105: 0 | D105: 0 | E105: 0 | F105: 0 | G105: 0
A106: 90 | B106: 0 | C106: 0 | D106: 0 | E106: 0 | F106: 0 | G106: 0
A107: 91 | B107: 0 | C107: 0 | D107: 0 | E107: 0 | F107: 0 | G107: 0
A108: 92 | B108: 0 | C108: 0 | D108: 0 | E108: 0 | F108: 0 | G108: 0
A109: 93 | B109: 0 | C109: 0 | D109: 0 | E109: 0 | F109: 0 | G109: 0
A110: 94 | B110: 0 | C110: 0 | D110: 0 | E110: 0 | F110: 0 | G110: 0
A111: 95 | B111: 0 | C111: 0 | D111: 0 | E111: 0 | F111: 0 | G111: 0
A112: 96 | B112: 0 | C112: 0 | D112: 0 | E112: 0 | F112: 0 | G112: 0
A113: 97 | B113: 0 | C113: 0 | D113: 0 | E113: 0 | F113: 0 | G113: 0
A114: 98 | B114: 0 | C114: 0 | D114: 0 | E114: 0 | F114: 0 | G114: 0
A115: 99 | B115: 0 | C115: 0 | D115: 0 | E115: 0 | F115: 0 | G115: 0
A116: 100 | B116: 0 | C116: 0 | D116: 0 | E116: 0 | F116: 0 | G116: 0
A117: 101 | B117: 0 | C117: 0 | D117: 0 | E117: 0 | F117: 0 | G117: 0
A118: 102 | B118: 0 | C118: 0 | D118: 0 | E118: 0 | F118: 0 | G118: 0
A119: 103 | B119: 0 | C119: 0 | D119: 0 | E119: 0 | F119: 0 | G119: 0
A120: 104 | B120: 0 | C120: 0 | D120: 0 | E120: 0 | F120: 0 | G120: 0
A121: 105 | B121: 0 | C121: 0 | D121: 0 | E121: 0 | F121: 0 | G121: 0
A122: 106 | B122: 0 | C122: 0 | D122: 0 | E122: 0 | F122: 0 | G122: 0
A123: 107 | B123: 0 | C123: 0 | D123: 0 | E123: 0 | F123: 0 | G123: 0
A124: 108 | B124: 0 | C124: 0 | D124: 0 | E124: 0 | F124: 0 | G124: 0
A125: 109 | B125: 0 | C125: 0 | D125: 0 | E125: 0 | F125: 0 | G125: 0
A126: 110 | B126: 0 | C126: 0 | D126: 0 | E126: 0 | F126: 0 | G126: 0
A127: 111 | B127: 0 | C127: 0 | D127: 0 | E127: 0 | F127: 0 | G127: 0
A128: 112 | B128: 0 | C128: 0 | D128: 0 | E128: 0 | F128: 0 | G128: 0
A129: 113 | B129: 0 | C129: 0 | D129: 0 | E129: 0 | F129: 0 | G129: 0
A130: 114 | B130: 0 | C130: 0 | D130: 0 | E130: 0 | F130: 0 | G130: 0
A131: 115 | B131: 0 | C131: 0 | D131: 0 | E131: 0 | F131: 0 | G131: 0
A132: 116 | B132: 0 | C132: 0 | D132: 0 | E132: 0 | F132: 0 | G132: 0
A133: 117 | B133: 0 | C133: 0 | D133: 0 | E133: 0 | F133: 0 | G133: 0
A134: 118 | B134: 0 | C134: 0 | D134: 0 | E134: 0 | F134: 0 | G134: 0
A135: 119 | B135: 0 | C135: 0 | D135: 0 | E135: 0 | F135: 0 | G135: 0
A136: 120 | B136: 0 | C136: 0 | D136: 0 | E136: 0 | F136: 0 | G136: 0
A137: 121 | B137: 0 | C137: 0 | D137: 0 | E137: 0 | F137: 0 | G137: 0
A138: 122 | B138: 0 | C138: 0 | D138: 0 | E138: 0 | F138: 0 | G138: 0
A139: 123 | B139: 0 | C139: 0 | D139: 0 | E139: 0 | F139: 0 | G139: 0
A140: 124 | B140: 0 | C140: 0 | D140: 0 | E140: 0 | F140: 0 | G140: 0
A141: 125 | B141: 0 | C141: 0 | D141: 0 | E141: 0 | F141: 0 | G141: 0
A142: 126 | B142: 0 | C142: 0 | D142: 0 | E142: 0 | F142: 0 | G142: 0
A143: 127 | B143: 0 | C143: 0 | D143: 0 | E143: 0 | F143: 0 | G143: 0
A144: 128 | B144: 0 | C144: 0 | D144: 0 | E144: 0 | F144: 0 | G144: 0
A145: 129 | B145: 0 | C145: 0 | D145: 0 | E145: 0 | F145: 0 | G145: 0
A146: 130 | B146: 0 | C146: 0 | D146: 0 | E146: 0 | F146: 0 | G146: 0
A147: 131 | B147: 0 | C147: 0 | D147: 0 | E147: 0 | F147: 0 | G147: 0
A148: 132 | B148: 0 | C148: 0 | D148: 0 | E148: 0 | F148: 0 | G148: 0
A149: 133 | B149: 0 | C149: 0 | D149: 0 | E149: 0 | F149: 0 | G149: 0
A150: 134 | B150: 0 | C150: 0 | D150: 0 | E150: 0 | F150: 0 | G150: 0
A151: 135 | B151: 0 | C151: 0 | D151: 0 | E151: 0 | F151: 0 | G151: 0
A152: 136 | B152: 0 | C152: 0 | D152: 0 | E152: 0 | F152: 0 | G152: 0
A153: 137 | B153: 0 | C153: 0 | D153: 0 | E153: 0 | F153: 0 | G153: 0
A154: 138 | B154: 0 | C154: 0 | D154: 0 | E154: 0 | F154: 0 | G154: 0
A155: 139 | B155: 0 | C155: 0 | D155: 0 | E155: 0 | F155: 0 | G155: 0
A156: 140 | B156: 0 | C156: 0 | D156: 0 | E156: 0 | F156: 0 | G156: 0
A157: 141 | B157: 0 | C157: 0 | D157: 0 | E157: 0 | F157: 0 | G157: 0
A158: 142 | B158: 0 | C158: 0 | D158: 0 | E158: 0 | F158: 0 | G158: 0
A159: 143 | B159: 0 | C159: 0 | D159: 0 | E159: 0 | F159: 0 | G159: 0
A160: 144 | B160: 0 | C160: 0 | D160: 0 | E160: 0 | F160: 0 | G160: 0
A161: 145 | B161: 0 | C161: 0 | D161: 0 | E161: 0 | F161: 0 | G161: 0
A162: 146 | B162: 0 | C162: 0 | D162: 0 | E162: 0 | F162: 0 | G162: 0
A163: 147 | B163: 0 | C163: 0 | D163: 0 | E163: 0 | F163: 0 | G163: 0
A164: 148 | B164: 0 | C164: 0 | D164: 0 | E164: 0 | F164: 0 | G164: 0
A165: 149 | B165: 0 | C165: 0 | D165: 0 | E165: 0 | F165: 0 | G165: 0
A166: 150 | B166: 0 | C166: 0 | D166: 0 | E166: 0 | F166: 0 | G166: 0
A167: 151 | B167: 0 | C167: 0 | D167: 0 | E167: 0 | F167: 0 | G167: 0
A168: 152 | B168: 0 | C168: 0 | D168: 0 | E168: 0 | F168: 0 | G168: 0
A169: 153 | B169: 0 | C169: 0 | D169: 0 | E169: 0 | F169: 0 | G169: 0
A170: 154 | B170: 0 | C170: 0 | D170: 0 | E170: 0 | F170: 0 | G170: 0
A171: 155 | B171: 0 | C171: 0 | D171: 0 | E171: 0 | F171: 0 | G171: 0
A172: 156 | B172: 0 | C172: 0 | D172: 0 | E172: 0 | F172: 0 | G172: 0
A173: 157 | B173: 0 | C173: 0 | D173: 0 | E173: 0 | F173: 0 | G173: 0
A174: 158 | B174: 0 | C174: 0 | D174: 0 | E174: 0 | F174: 0 | G174: 0
A175: 159 | B175: 0 | C175: 0 | D175: 0 | E175: 0 | F175: 0 | G175: 0
A176: 160 | B176: 0 | C176: 0 | D176: 0 | E176: 0 | F176: 0 | G176: 0
A177: 161 | B177: 0 | C177: 0 | D177: 0 | E177: 0 | F177: 0 | G177: 0
A178: 162 | B178: 0 | C178: 0 | D178: 0 | E178: 0 | F178: 0 | G178: 0
A179: 163 | B179: 0 | C179: 0 | D179: 0 | E179: 0 | F179: 0 | G179: 0
A180: 164 | B180: 0 | C180: 0 | D180: 0 | E180: 0 | F180: 0 | G180: 0
A181: 165 | B181: 0 | C181: 0 | D181: 0 | E181: 0 | F181: 0 | G181: 0
A182: 166 | B182: 0 | C182: 0 | D182: 0 | E182: 0 | F182: 0 | G182: 0
A183: 167 | B183: 0 | C183: 0 | D183: 0 | E183: 0 | F183: 0 | G183: 0
A184: 168 | B184: 0 | C184: 0 | D184: 0 | E184: 0 | F184: 0 | G184: 0
A185: 169 | B185: 0 | C185: 0 | D185: 0 | E185: 0 | F185: 0 | G185: 0
A186: 170 | B186: 0 | C186: 0 | D186: 0 | E186: 0 | F186: 0 | G186: 0
A187: 171 | B187: 0 | C187: 0 | D187: 0 | E187: 0 | F187: 0 | G187: 0
A188: 172 | B188: 0 | C188: 0 | D188: 0 | E188: 0 | F188: 0 | G188: 0
A189: 173 | B189: 0 | C189: 0 | D189: 0 | E189: 0 | F189: 0 | G189: 0
A190: 174 | B190: 0 | C190: 0 | D190: 0 | E190: 0 | F190: 0 | G190: 0
A191: 175 | B191: 0 | C191: 0 | D191: 0 | E191: 0 | F191: 0 | G191: 0
A192: 176 | B192: 0 | C192: 0 | D192: 0 | E192: 0 | F192: 0 | G192: 0
A193: 177 | B193: 0 | C193: 0 | D193: 0 | E193: 0 | F193: 0 | G193: 0
A194: 178 | B194: 0 | C194: 0 | D194: 0 | E194: 0 | F194: 0 | G194: 0
A195: 179 | B195: 0 | C195: 0 | D195: 0 | E195: 0 | F195: 0 | G195: 0
A196: 180 | B196: 0 | C196: 0 | D196: 0 | E196: 0 | F196: 0 | G196: 0
A197: 181 | B197: 0 | C197: 0 | D197: 0 | E197: 0 | F197: 0 | G197: 0
A198: 182 | B198: 0 | C198: 0 | D198: 0 | E198: 0 | F198: 0 | G198: 0
A199: 183 | B199: 0 | C199: 0 | D199: 0 | E199: 0 | F199: 0 | G199: 0
A200: 184 | B200: 0 | C200: 0 | D200: 0 | E200: 0 | F200: 0 | G200: 0
... 837 more rows

Sheet TestData
A1: Input Diameter | E1: ="Farm: TestData Farm Block: 1" -> Farm: TestData Farm Block: 1
B2: This is test data that can be pasted into the Input sheet.
A3: Tree | B3: Cluster | C3: Flower | D3: =+Setup!A5 -> 2015-05-18 | E3: =+Setup!A6 -> 2015-05-21 | F3: =+Setup!A7 -> 2015-05-25 | G3: =+Setup!A8 -> 2015-05-28 | H3: =+Setup!A9 -> 2015-05-31 | I3: =+Setup!A10 -> 2015-06-03 | J3: =+Setup!A10 -> 2015-06-03
A4: 1 | B4: 1 | C4: 1 | D4: 8 | E4: 7.6 | F4: 7.5 | G4: 7.5 | H4: 7.9 | I4: 7.9
A5: =+A4 -> 1 | B5: 1 | C5: 2 | D5: 7.3 | E5: 7.5 | F5: 7.5 | G5: 7.5 | H5: 8.1
A6: =+A5 -> 1 | B6: 2 | C6: 1 | D6: 7.7 | E6: 7.9 | F6: 7.6 | G6: 7.9 | H6: 8.1 | I6: 8 | J6: 7.1
A7: 1 | B7: 2 | C7: 2 | D7: 8 | E7: 9.4 | F7: 9.3 | G7: 9.4 | H7: 9.5 | I7: 9.3 | J7: 9.2
A8: 1 | B8: 3 | C8: 1 | D8: 7.7 | E8: 10.9 | F8: 13.6 | G8: 14.8 | H8: 16.8 | I8: 18.1 | J8: 20
A9: 1 | B9: 3 | C9: 2 | D9: 4.7 | E9: 4.7 | F9: 4.3
A10: 1 | B10: 4 | C10: 1 | D10: 9 | E10: 9.3 | F10: 9.5 | G10: 9.4 | H10: 9.7 | I10: 9.4
A11: 1 | B11: 4 | C11: 2 | D11: 7 | E11: 7.1 | F11: 7.1 | G11: 7
A12: 1 | B12: 4 | C12: 3 | D12: 7.9 | E12: 7.7
A13: 1 | B13: 5 | C13: 1 | D13: 8.6 | E13: 8.9 | F13: 8.8 | G13: 9.1 | H13: 9.3 | I13: 9.5
A14: 1 | B14: 5 | C14: 2 | D14: 4.6 | E14: 4.6 | F14: 2.8
A15: 1 | B15: 5 | C15: 3 | D15: 4.6 | E15: 4.6
A16: 1 | B16: 5 | C16: 4 | D16: 3.5 | E16: 3.5
A17: 1 | B17: 6 | C17: 1 | D17: 9.3 | E17: 13.1 | F17: 14.9 | G17: 16.9 | H17: 19.3 | I17: 21 | J17: 22.9
A18: 1 | B18: 6 | C18: 2 | D18: 7.6 | E18: 7.6 | F18: 7.6 | G18: 8.4 | H18: 8.4 | I18: 8.8 | J18: 8.5
A19: 1 | B19: 6 | C19: 3 | D19: 6.8 | E19: 6.6 | F19: 6.3
A20: 1 | B20: 7 | C20: 1 | D20: 9.7 | E20: 10.3 | F20: 10.7 | G20: 10.7 | H20: 10.5 | I20: 10.7
A21: 1 | B21: 7 | C21: 2 | D21: 7.2 | E21: 7.1 | F21: 6.8 | G21: 6.9 | H21: 7.4
A22: 1 | B22: 8 | C22: 1 | D22: 8.3 | E22: 11.1 | F22: 13.6 | G22: 15 | H22: 17.6 | I22: 18.7 | J22: 21.1
A23: 1 | B23: 8 | C23: 2 | D23: 7.4 | E23: 6.9 | F23: 7.1 | G23: 7.2
A24: 1 | B24: 8 | C24: 3 | D24: 7.1 | E24: 7.2 | F24: 7 | G24: 6.8
A25: 1 | B25: 8 | C25: 4 | D25: 3.9 | E25: 3.4 | F25: 1.8 | G25: 3.3 | H25: 1.7
A26: 1 | B26: 8 | C26: 5 | D26: 2 | E26: 2.4
A27: 1 | B27: 9 | C27: 1 | D27: 7.6 | E27: 11.1 | F27: 13.2 | G27: 14.4 | H27: 16.8 | I27: 17.7 | J27: 20.2
A28: 1 | B28: 9 | C28: 2 | D28: 7.7 | E28: 7.8 | F28: 7.7 | G28: 8.2
A29: 1 | B29: 9 | C29: 3 | D29: 3.5 | E29: 2.4
A30: 1 | B30: 9 | C30: 4 | D30: 3.1 | E30: 2.4
A31: 1 | B31: 9 | C31: 5 | D31: 3.5 | E31: 2.1
A32: 2 | B32: 10 | C32: 1 | D32: 9.8 | E32: 12.9 | F32: 15.3 | G32: 15.6 | H32: 16.2 | I32: 16.1 | J32: 16.1
A33: 2 | B33: 10 | C33: 2 | D33: 4.1 | E33: 3 | F33: 3
A34: 2 | B34: 10 | C34: 3 | D34: 4.2 | E34: 3.7
A35: 2 | B35: 10 | C35: 4 | D35: 4.6 | E35: 4.3
A36: 2 | B36: 10 | C36: 5 | D36: 3.8 | E36: 2.1 | F36: 2.6
A37: 2 | B37: 11 | C37: 1 | D37: 10.2 | E37: 12.2 | F37: 12.2 | G37: 12.5 | H37: 12.4 | I37: 12.6 | J37: 12.6
A38: 2 | B38: 11 | C38: 2 | D38: 8.5 | E38: 8.9 | F38: 8.9 | G38: 8.8 | H38: 9 | I38: 9 | J38: 7.3
A39: 2 | B39: 11 | C39: 3 | D39: 6.3 | E39: 6.5 | F39: 6.2 | G39: 6.6 | H39: 6.1 | I39: 6.5 | J39: 5.1
A40: 2 | B40: 11 | C40: 4 | D40: 5.1 | E40: 5 | F40: 8
A41: 2 | B41: 11 | C41: 5 | D41: 8.1 | E41: 8.3
A42: 2 | B42: 12 | C42: 1 | D42: 9.1 | E42: 10 | F42: 9.7 | G42: 9.9
A43: 2 | B43: 12 | C43: 2 | D43: 7.4 | E43: 7.6 | F43: 7.6 | G43: 7.6 | H43: 7.7
A44: 2 | B44: 13 | C44: 1 | D44: 9.8 | E44: 12.3 | F44: 12.6 | G44: 12.6 | H44: 12.8 | I44: 12.8 | J44: 12.8
A45: 2 | B45: 13 | C45: 2 | D45: 4.8 | E45: 4.8
A46: 2 | B46: 14 | C46: 1 | D46: 8.8 | E46: 9 | F46: 8.7 | G46: 9
A47: 2 | B47: 14 | C47: 2 | D47: 8 | E47: 8.4 | F47: 8.2 | G47: 8.5
A48: 2 | B48: 14 | C48: 3 | D48: 7.4 | E48: 7.3 | F48: 7.4 | G48: 7.5
A49: 2 | B49: 14 | C49: 4 | D49: 6.8 | E49: 6.7 | F49: 6.4 | G49: 6.7 | H49: 6.6 | I49: 6.4 | J49: 5.3
A50: 3 | B50: 15 | C50: 1 | D50: 9.1 | E50: 9.5 | F50: 9.3 | G50: 9.4 | H50: 9.6 | I50: 9 | J50: 9
A51: 3 | B51: 15 | C51: 2 | D51: 6.7 | E51: 7 | F51: 6.7 | G51: 6.7 | H51: 6.9 | I51: 6.9 | J51: 5.6
A52: 3 | B52: 15 | C52: 3 | D52: 5.4 | E52: 5.4 | F52: 4.3
A53: 3 | B53: 15 | C53: 4 | D53: 5.4 | E53: 5.1 | F53: 5.1
A54: 3 | B54: 15 | C54: 5 | D54: 7.7 | E54: 7.7 | F54: 7.7 | G54: 8 | H54: 8 | I54: 8 | J54: 6.9
A55: 3 | B55: 16 | C55: 1 | D55: 9.8 | E55: 13.7 | F55: 16.3 | G55: 18.1 | H55: 20.4 | I55: 21.6 | J55: 24
A56: 3 | B56: 16 | C56: 2 | D56: 8 | E56: 7.7 | F56: 7.3
A57: 3 | B57: 16 | C57: 3 | D57: 4.5 | E57: 4.3 | F57: 3.4
A58: 3 | B58: 16 | C58: 4 | D58: 4.1 | E58: 4.4
A59: 3 | B59: 16 | C59: 5 | D59: 4.5 | E59: 3.8
A60: 3 | B60: 17 | C60: 1 | D60: 9.2 | E60: 12.8 | F60: 15.1 | G60: 16 | H60: 16.5 | I60: 16.3 | J60: 16.5
A61: 3 | B61: 17 | C61: 2 | D61: 4.5 | E61: 4.5
A62: 3 | B62: 17 | C62: 3 | D62: 3.6
A63: 4 | B63: 18 | C63: 1 | D63: 8.2 | E63: 8.5 | F63: 8.5 | G63: 8.7 | H63: 8.7 | I63: 8.8
A64: 4 | B64: 18 | C64: 2 | D64: 7.2 | E64: 7.3 | F64: 7 | G64: 7.2
A65: 4 | B65: 18 | C65: 3 | D65: 6.8 | E65: 6.7 | F65: 6.4 | G65: 6.8
A66: 4 | B66: 18 | C66: 4 | D66: 7.4 | E66: 7.3 | F66: 6.9 | G66: 7.4
A67: 4 | B67: 18 | C67: 5 | D67: 6 | E67: 6.1 | F67: 5.9 | G67: 6.2 | H67: 6.1
A68: 4 | B68: 19 | C68: 1 | D68: 8.7 | E68: 8.7 | F68: 8.9 | G68: 9
A69: 4 | B69: 19 | C69: 2 | D69: 8 | E69: 8.2 | F69: 8 | G69: 8.2
A70: =+A69 -> 4 | B70: 20 | C70: 1 | D70: 8.5 | E70: 9.7 | F70: 9.4 | G70: 9.6 | H70: 8.9 | I70: 9.8
A71: 4 | B71: 20 | C71: 2 | D71: 6.9 | E71: 6.9 | F71: 7.1 | G71: 7.1
A72: 4 | B72: 20 | C72: 3 | D72: 7.5 | E72: 7.4 | F72: 7.3 | G72: 7.5 | H72: 7.7 | I72: 7.8
A73: 4 | B73: 20 | C73: 4 | D73: 6.8 | E73: 6.8 | F73: 6.8 | G73: 6.9
A74: 5 | B74: 1 | C74: 1 | D74: 7.3 | E74: 7.3 | F74: 7 | G74: 6.9 | H74: 7.3 | I74: 7.5 | J74: 10
A75: 5 | B75: 1 | C75: 2 | D75: 9.5 | E75: 10.3 | F75: 10.1 | G75: 10 | H75: 10.3 | I75: 10.5
A76: 5 | B76: 1 | C76: 3 | D76: 5.2
A77: 5 | B77: 1 | C77: 4 | D77: 4
A78: 5 | B78: 2 | C78: 1 | D78: 10.2 | E78: 13.5 | F78: 16.1 | G78: 17.6 | H78: 20 | I78: 20.6 | J78: 22.9
A79: 5 | B79: 2 | C79: 2 | D79: 4.4 | E79: 4.3 | F79: 2.9
A80: 5 | B80: 3 | C80: 1 | D80: 9.3 | E80: 9.5 | F80: 9.4 | G80: 9.5
A81: 5 | B81: 3 | C81: 2 | D81: 6.6 | E81: 6.4 | F81: 6.3 | G81: 6.7
A82: 5 | B82: 3 | C82: 3 | D82: 7 | E82: 6.7 | F82: 6.4 | G82: 6.8
A83: 5 | B83: 3 | C83: 4 | D83: 6.7 | E83: 6.7 | F83: 7.2 | G83: 7.5
A84: 5 | B84: 3 | C84: 5 | D84: 7.5 | E84: 7.4 | F84: 7.4 | G84: 7.5
A85: 5 | B85: 3 | C85: 6 | D85: 4.8 | E85: 4.8 | F85: 4.3 | G85: 4.8
A86: 6 | B86: 4 | C86: 1 | D86: 8.2 | E86: 8.2 | F86: 8.6 | G86: 8.7
A87: 6 | B87: 4 | C87: 2 | D87: 6.5 | E87: 6.6
A88: 6 | B88: 5 | C88: 1 | D88: 7.6 | E88: 7.5 | F88: 7.2 | G88: 7.6 | H88: 7.6
A89: 6 | B89: 5 | C89: 2 | D89: 9.3 | E89: 10.8 | F89: 10.5 | G89: 10.7 | H89: 10.6 | I89: 10.8 | J89: 10.8
A90: 6 | B90: 5 | C90: 3 | D90: 7.8 | E90: 7.6 | F90: 7.4 | G90: 6.8 | H90: 5.8 | I90: 6.3
A91: 6 | B91: 5 | C91: 4 | D91: 7.3 | E91: 7.3 | F91: 7.1 | G91: 7.2
A92: 6 | B92: 5 | C92: 5 | D92: 6.4 | E92: 5.8 | F92: 5.8 | G92: 5.9
A93: 6 | B93: 6 | C93: 1 | D93: 9.4 | E93: 10.2 | F93: 9.9 | G93: 10.1 | H93: 10.5 | I93: 8.5
A94: 6 | B94: 6 | C94: 2 | D94: 8 | E94: 7.9 | F94: 7.7 | G94: 8.2 | H94: 8.4
A95: 6 | B95: 6 | C95: 3 | D95: 8.3 | E95: 8.3 | F95: 7.8
A96: 7 | B96: 7 | C96: 1 | D96: 8.9 | E96: 9 | F96: 8.7 | G96: 9
A97: 7 | B97: 7 | C97: 2 | D97: 7.3 | E97: 7.5 | F97: 7 | G97: 7.5
A98: 7 | B98: 7 | C98: 3 | D98: 6.9 | E98: 6.8 | F98: 6.7 | G98: 6.9
A99: 7 | B99: 7 | C99: 4 | D99: 6.6 | E99: 6.6 | F99: 6.7 | G99: 6.5 | H99: 6.6 | I99: 6.9
A100: 7 | B100: 7 | C100: 5 | D100: 6 | E100: 5.7 | F100: 5.6 | G100: 5.6
A101: 8 | B101: 8 | C101: 1 | D101: 9.7 | E101: 13.2 | F101: 15.9 | G101: 17.4 | H101: 19.9 | I101: 21.1 | J101: 23.6
A102: 8 | B102: 8 | C102: 2 | D102: 5.2 | E102: 5.2 | F102: 4.6 | G102: 5
A103: 8 | B103: 8 | C103: 3 | D103: 4.5 | E103: 4 | F103: 4.2 | G103: 3.8
A104: 8 | B104: 8 | C104: 4 | D104: 4.2
A105: 8 | B105: 8 | C105: 5 | D105: 5.5 | E105: 5.1 | F105: 4.7 | G105: 5
A106: 8 | B106: 9 | C106: 1 | D106: 9.9 | E106: 10.2 | F106: 10 | G106: 10.1 | H106: 10.3 | I106: 10.2
A107: 8 | B107: 9 | C107: 2 | D107: 8.2 | E107: 7.7 | F107: 7.9 | G107: 8.2
A108: 8 | B108: 9 | C108: 3 | D108: 6.6 | E108: 6 | F108: 6.4 | G108: 6.5
A109: 8 | B109: 9 | C109: 4 | D109: 5.4 | E109: 5.4
A110: 8 | B110: 9 | C110: 5 | D110: 3.4 | E110: 3.1
A111: 9 | B111: 10 | C111: 1 | D111: 8.8 | E111: 10.1 | F111: 10 | G111: 10.1 | H111: 10.1
A112: 9 | B112: 10 | C112: 2 | D112: 7 | E112: 6.9 | F112: 6.4 | G112: 6.7 | H112: 6.7
A113: 9 | B113: 10 | C113: 3 | D113: 7.6 | E113: 7.7 | F113: 7.4 | G113: 7.6 | H113: 7.3
A114: 9 | B114: 11 | C114: 1 | D114: 8.1 | E114: 8.2 | F114: 8 | G114: 8.4
A115: 9 | B115: 11 | C115: 2 | D115: 9.3 | E115: 9.6 | F115: 9.6
A116: 9 | B116: 11 | C116: 3 | D116: 7.1 | E116: 7.1 | F116: 7 | G116: 7.1
A117: 9 | B117: 11 | C117: 4 | D117: 6.8 | E117: 6.8 | F117: 6.6 | G117: 6.9 | H117: 6.3
A118: 9 | B118: 11 | C118: 5 | D118: 5.9 | E118: 5.9 | F118: 5.6 | G118: 5.6
A119: 9 | B119: 12 | C119: 1 | D119: 8.4 | E119: 8.2
A120: 9 | B120: 12 | C120: 2 | D120: 6.8 | E120: 6.8
A121: 9 | B121: 12 | C121: 3 | D121: 5.9 | E121: 6.1
A122: 9 | B122: 12 | C122: 4 | D122: 9.1 | E122: 6.8
A123: 9 | B123: 12 | C123: 5 | D123: 5.7 | E123: 5.7
A124: 9 | B124: 13 | C124: 1 | D124: 9.9 | E124: 13.5 | F124: 15.8 | G124: 17.1 | H124: 19.3 | I124: 20.7 | J124: 22.8
A125: 9 | B125: 13 | C125: 2 | D125: 7.7 | E125: 7.8 | F125: 7.7 | G125: 7.9 | H125: 7.9 | I125: 8 | J125: 7.4
A126: 9 | B126: 13 | C126: 3 | D126: 6.3 | E126: 6.3 | F126: 6.4 | G126: 6.6
A127: 9 | B127: 13 | C127: 4 | D127: 7.5 | E127: 10.5 | F127: 12.7 | G127: 13.2 | H127: 13.2 | I127: 13.5 | J127: 13.3
A128: 9 | B128: 14 | C128: 1 | D128: 10 | E128: 13.9 | F128: 16.5 | G128: 18.2 | H128: 20.6 | I128: 22 | J128: 24.5
A129: 9 | B129: 14 | C129: 2 | D129: 5.7 | E129: 5.7 | F129: 5.4
A130: 9 | B130: 14 | C130: 3 | D130: 4.9 | E130: 5 | F130: 4
A131: 9 | B131: 14 | C131: 4 | D131: 4.9 | E131: 4.8
A132: 9 | B132: 14 | C132: 5 | D132: 4.8 | E132: 4.7
A133: 10 | B133: 15 | C133: 1 | D133: 9.7 | E133: 9.8 | F133: 9.8 | G133: 9.6 | H133: 9.9
A134: =+A133 -> 10 | B134: 15 | C134: 2 | D134: 6.9 | E134: 6.9 | F134: 6.7 | G134: 7
A135: 10 | B135: 15 | C135: 3 | D135: 7.1 | E135: 7.4 | F135: 7.3 | G135: 7.3
A136: 10 | B136: 15 | C136: 4 | D136: 5.9 | E136: 5.8 | F136: 5.5 | G136: 6.1
A137: 10 | B137: 15 | C137: 5 | D137: 5.3 | E137: 6.9 | F137: 6.6 | G137: 7.4
A138: 10 | B138: 15 | C138: 6 | D138: 7.4
A139: 10 | B139: 16 | C139: 1 | D139: 9.1 | E139: 9.2 | F139: 9.3 | G139: 9.4 | H139: 9.5
A140: 10 | B140: 16 | C140: 2 | D140: 7.2 | E140: 7 | F140: 6.5 | G140: 6.9 | H140: 6.8
A141: 10 | B141: 16 | C141: 3 | D141: 7.2 | E141: 7.3 | F141: 7.1 | G141: 7.5
A142: 10 | B142: 16 | C142: 4 | D142: 7.2 | E142: 7.1 | F142: 6.8 | G142: 7.1 | H142: 7
A143: 10 | B143: 16 | C143: 5 | D143: 4.6 | E143: 3.6
A144: 10 | B144: 17 | C144: 1 | D144: 8.8 | E144: 9.5 | F144: 9.3 | G144: 9.4 | H144: 9.6
A145: 10 | B145: 17 | C145: 2 | D145: 7.1 | E145: 7 | F145: 6.9 | G145: 6.9 | H145: 5.9
A146: 10 | B146: 17 | C146: 3 | D146: 6.2 | E146: 6.1 | F146: 5.9 | G146: 5.9
A147: 10 | B147: 17 | C147: 4 | D147: 5.8 | E147: 5.7
A148: 10 | B148: 17 | C148: 5 | D148: 3.2 | E148: 3
A149: 10 | B149: 18 | C149: 1 | D149: 10 | E149: 10.4 | F149: 10 | G149: 10.1 | H149: 10.2
A150: 10 | B150: 18 | C150: 2 | D150: 7.3 | E150: 7.1 | F150: 7.1 | G150: 7.1
A151: 10 | B151: 18 | C151: 3 | D151: 6.2 | E151: 6
A152: 10 | B152: 18 | C152: 4 | D152: 5.4 | E152: 5.6
A153: 10 | B153: 18 | C153: 5 | D153: 5.1 | E153: 5
A154: 10 | B154: 19 | C154: 1 | D154: 8 | E154: 11.4 | F154: 13.9 | G154: 15.4 | H154: 18 | I154: 19 | J154: 21.3
A155: 10 | B155: 19 | C155: 2 | D155: 6.1 | E155: 6.5 | F155: 6.1 | G155: 6.4 | H155: 6.2 | I155: 6.5
A156: 10 | B156: 19 | C156: 3 | D156: 5.9 | E156: 8 | F156: 8 | G156: 8 | H156: 8.3 | I156: 8.2 | J156: 8.2
A157: 10 | B157: 20 | C157: 1 | D157: 8.8 | E157: 9 | F157: 9 | G157: 8.6 | H157: 8.8
A158: 10 | B158: 20 | C158: 2 | D158: 7.1 | E158: 7.2 | F158: 6.9 | G158: 6.8
A159: 10 | B159: 20 | C159: 3 | D159: 5.4 | E159: 5.1 | F159: 4.9 | G159: 4.9 | H159: 3.5
A160: 10 | B160: 20 | C160: 4 | D160: 6.8 | E160: 6.9 | F160: 6.7 | G160: 6.8
A161: 11 | B161: 1 | C161: 1 | D161: 9.5 | E161: 9.7 | F161: 9.7 | G161: 9.8 | H161: 9.8 | I161: 9.6 | J161: 9.1
A162: 11 | B162: 1 | C162: 2 | D162: 4.6 | E162: 4.4
A163: 11 | B163: 1 | C163: 3 | D163: 4.2 | E163: 4.5
A164: 11 | B164: 2 | C164: 1 | D164: 10.4 | E164: 13.1 | F164: 16.8 | G164: 18.7 | H164: 21.3 | I164: 22.5 | J164: 24.8
A165: 11 | B165: 2 | C165: 2 | D165: 8 | E165: 7.8 | F165: 7.5 | G165: 8 | H165: 7.4
A166: 11 | B166: 3 | C166: 1 | D166: 9.7 | E166: 10 | F166: 9.8 | G166: 10.1 | H166: 10.2 | I166: 10.2
A167: 11 | B167: 3 | C167: 2 | D167: 6.5 | E167: 6.5 | F167: 6.1 | G167: 6.4
A168: 11 | B168: 3 | C168: 3 | D168: 5.3 | E168: 5.2
A169: 11 | B169: 3 | C169: 4 | D169: 6.9 | E169: 6.8 | F169: 6.1 | G169: 5.8
A170: 11 | B170: 4 | C170: 1 | D170: 9.5 | E170: 12.7 | F170: 13.2 | G170: 13.4 | H170: 13.4 | I170: 13.6 | J170: 13.5
A171: 11 | B171: 4 | C171: 2 | D171: 7.5 | E171: 7 | F171: 7.2 | G171: 7.5
A172: 11 | B172: 5 | C172: 1 | D172: 10.1 | E172: 13 | F172: 16.2 | G172: 17.5 | H172: 20.2 | I172: 22.1 | J172: 24.1
A173: 11 | B173: 5 | C173: 2 | D173: 7.5 | E173: 7.8 | F173: 7.7 | G173: 7.6
A174: 11 | B174: 6 | C174: 1 | D174: 9.2 | E174: 9.8 | F174: 9.6 | G174: 9.8 | H174: 9.8 | I174: 10 | J174: 9
A175: 11 | B175: 6 | C175: 2 | D175: 5.7 | E175: 5.5 | F175: 5.5 | G175: 5.7
A176: 11 | B176: 6 | C176: 3 | D176: 7.3 | E176: 6.8 | F176: 6.7 | G176: 6.8
A177: 11 | B177: 7 | C177: 1 | D177: 9.2 | E177: 9.2 | F177: 9.1 | G177: 9.4 | H177: 9.6
A178: 11 | B178: 7 | C178: 2 | D178: 7.9 | E178: 7.8 | F178: 7.2 | G178: 7.9
A179: 11 | B179: 7 | C179: 3 | D179: 4.8 | E179: 4.8 | F179: 4.4 | G179: 4.5
A180: 11 | B180: 7 | C180: 4 | D180: 5.9 | E180: 5.9 | F180: 5.7 | G180: 5.7
A181: 11 | B181: 8 | C181: 1 | D181: 6.4 | E181: 9.4 | F181: 11.8 | G181: 13.3 | H181: 15.8 | I181: 16.9 | J181: 19.3
A182: 11 | B182: 8 | C182: 2 | D182: 5.1 | E182: 5.3
A183: 11 | B183: 9 | C183: 1 | D183: 6.8 | E183: 7.1 | F183: 6.7 | G183: 6.8 | H183: 7.1 | I183: 7
A184: 11 | B184: 9 | C184: 2 | D184: 7.2 | E184: 7.2 | F184: 7.1
A185: 11 | B185: 9 | C185: 3 | D185: 8.2 | E185: 10.9 | F185: 13.5 | G185: 14.5 | H185: 16.8 | I185: 18.4 | J185: 20.9
A186: 11 | B186: 10 | C186: 1 | D186: 9.6 | E186: 9.8 | F186: 9.6 | G186: 9.8
A187: 11 | B187: 10 | C187: 2 | D187: 7.6 | E187: 7.6 | F187: 7.4 | G187: 7.7
A188: 11 | B188: 10 | C188: 3 | D188: 6.2 | E188: 6.2 | F188: 5.2 | G188: 6.4
A189: 11 | B189: 10 | C189: 4 | D189: 6.8 | E189: 6.6 | F189: 6.2 | G189: 6.7 | H189: 6.6 | I189: 6.8
A190: 11 | B190: 10 | C190: 5 | D190: 5.5 | E190: 5.6 | F190: 6.8 | G190: 5.3
A191: 12 | B191: 11 | C191: 1 | D191: 8 | E191: 8.1 | F191: 7.9 | G191: 8.1
A192: 12 | B192: 11 | C192: 2 | D192: 6.9 | E192: 7 | F192: 6.8 | G192: 7
A193: 12 | B193: 11 | C193: 3 | D193: 7.3 | E193: 6.6 | F193: 7.1 | G193: 6.9
A194: 12 | B194: 11 | C194: 4 | D194: 4.9
A195: 12 | B195: 12 | C195: 1 | D195: 10.7 | E195: 13.8 | F195: 16.7 | G195: 18.5 | H195: 20.8 | I195: 22 | J195: 24.6
A196: 12 | B196: 12 | C196: 2 | D196: 7.9 | E196: 7.7 | F196: 7.7 | G196: 7.9 | H196: 7.5
A197: 12 | B197: 12 | C197: 3 | D197: 7.5 | E197: 7.8 | F197: 7.3 | G197: 8
A198: =+A197 -> 12 | B198: 12 | C198: 4 | D198: 6.7 | E198: 6.3 | F198: 7.2 | G198: 7.4
A199: 12 | B199: 12 | C199: 5 | D199: 7.1 | E199: 7.3 | F199: 6.7 | G199: 7.1
A200: 12 | B200: 13 | C200: 1 | D200: 6.8 | E200: 6.8 | F200: 6.6 | G200: 6.6
... 314 more rows

Sheet TestData 2
A1: Input Diameter | E1: ="Farm: TestData 2 Farm Block: 1" -> Farm: TestData 2 Farm Block: 1
A2: Data could be pasted into this sheet and the macro will copy it into staging sheet.
A3: Tree | B3: Cluster | C3: Flower | D3: =+Setup!A5 -> 2015-05-18 | E3: =+Setup!A6 -> 2015-05-21 | F3: =+Setup!A7 -> 2015-05-25 | G3: =+Setup!A8 -> 2015-05-28 | H3: =+Setup!A9 -> 2015-05-31 | I3: =+Setup!A10 -> 2015-06-03 | J3: =+Setup!A11 -> 2015-06-06
A4: 1 | B4: 1 | C4: 1 | D4: 7.5 | E4: 11.3 | F4: 13.4
A5: 1 | B5: 1 | C5: 2 | D5: 6.1 | E5: 6.6 | F5: 6.8
A6: 1 | B6: 1 | C6: 3 | D6: 6.8 | E6: 7 | F6: 7.4
A7: 1 | B7: 1 | C7: 4 | D7: 6.4 | E7: 9.6 | F7: 12.3
A8: 1 | B8: 1 | C8: 5 | D8: 6.5 | E8: 8 | F8: 9.8
A9: 1 | B9: 2 | C9: 1 | D9: 10.5 | E9: 12.9 | F9: 13.4
A10: 1 | B10: 2 | C10: 2 | D10: 8 | E10: 7.9 | F10: 7.9
A11: 1 | B11: 2 | C11: 3 | D11: 8.6 | E11: 10.2 | F11: 10.4
A12: 1 | B12: 2 | C12: 4 | D12: 6.4 | E12: 6.4 | F12: 6.5
A13: 1 | B13: 2 | C13: 5 | D13: 3.8
A14: 1 | B14: 3 | C14: 1 | D14: 8.7 | E14: 11 | F14: 11.1
A15: 1 | B15: 3 | C15: 2 | D15: 7.1 | E15: 9 | F15: 9.1
A16: 1 | B16: 3 | C16: 3 | D16: 7 | E16: 7 | F16: 7.2
A17: 1 | B17: 3 | C17: 4 | D17: 4.1
A18: 1 | B18: 3 | C18: 5 | D18: 3.8
A19: 1 | B19: 4 | C19: 1 | D19: 9.3 | E19: 10.8 | F19: 11
A20: 1 | B20: 4 | C20: 2 | D20: 7.1 | E20: 7.2 | F20: 7.6
A21: 1 | B21: 4 | C21: 3 | D21: 5.6 | E21: 5.6 | F21: 5.8
A22: 1 | B22: 4 | C22: 4 | D22: 4.5 | E22: 4.2
A23: 1 | B23: 4 | C23: 5 | D23: 6.3 | E23: 6.3 | F23: 6.1
A24: 1 | B24: 5 | C24: 1 | D24: 6.8 | E24: 8.3 | F24: 8.2
A25: 1 | B25: 5 | C25: 2 | D25: 6.1 | E25: 5.5 | F25: 6
A26: 1 | B26: 5 | C26: 3 | D26: 5 | E26: 5 | F26: 4.7
A27: 1 | B27: 5 | C27: 4 | D27: 4.5 | E27: 4.6 | F27: 3.7
A28: 1 | B28: 5 | C28: 5 | D28: 4.9
A29: 1 | B29: 6 | C29: 1 | D29: 8.5 | E29: 12.6 | F29: 16.4
A30: 1 | B30: 6 | C30: 2 | D30: 8.6 | E30: 11.2 | F30: 11.3
A31: 1 | B31: 6 | C31: 3 | D31: 5.8 | E31: 5.6
A32: 1 | B32: 6 | C32: 4 | D32: 4.9 | E32: 4.9
A33: 1 | B33: 6 | C33: 5 | D33: 4.6 | E33: 4.3
A34: 1 | B34: 7 | C34: 1 | D34: 7.5 | E34: 11.8 | F34: 15.3
A35: 1 | B35: 7 | C35: 2 | D35: 6.3 | E35: 10.2 | F35: 13.4
A36: 1 | B36: 7 | C36: 3 | D36: 4 | E36: 6.3 | F36: 6.1
A37: 1 | B37: 7 | C37: 4 | D37: 5.9 | E37: 7.9 | F37: 7.7
A38: 1 | B38: 7 | C38: 5 | D38: 4.2 | E38: 4.2
A39: 1 | B39: 8 | C39: 1 | D39: 7 | E39: 7.9 | F39: 8.1
A40: 1 | B40: 8 | C40: 2 | D40: 7 | E40: 11.5 | F40: 15.1
A41: 1 | B41: 8 | C41: 3 | D41: 6.7 | E41: 10.7 | F41: 14.1
A42: 1 | B42: 8 | C42: 4 | D42: 6.9 | E42: 11.1 | F42: 14.9
A43: 1 | B43: 8 | C43: 5 | D43: 8 | E43: 12.3 | F43: 15.6
A44: 1 | B44: 9 | C44: 1 | D44: 5.8 | E44: 6.1 | F44: 5.9
A45: 1 | B45: 9 | C45: 2 | D45: 4.1 | E45: 5
A46: 1 | B46: 9 | C46: 3 | D46: 4.4 | E46: 4.5
A47: 1 | B47: 9 | C47: 4 | D47: 4.6
A48: 1 | B48: 9 | C48: 5 | D48: 7.3 | E48: 12.1 | F48: 16
A49: 1 | B49: 10 | C49: 1 | D49: 6.5 | E49: 10.6 | F49: 14
A50: 1 | B50: 10 | C50: 2 | D50: 6.1 | E50: 6.1 | F50: 6.2
A51: 1 | B51: 10 | C51: 3 | D51: 4.9 | E51: 4.9 | F51: 4.7
A52: 1 | B52: 10 | C52: 4 | D52: 4.9 | E52: 4.7
A53: 1 | B53: 10 | C53: 5 | D53: 7.6 | E53: 8.9 | F53: 9.1
A54: 1 | B54: 11 | C54: 1 | D54: 5 | E54: 4.9
A55: 1 | B55: 11 | C55: 2 | D55: 4.4 | E55: 4.8
A56: 1 | B56: 11 | C56: 3 | D56: 4.9 | F56: 5.1
A57: 1 | B57: 11 | C57: 4 | D57: 7.8 | E57: 9.3 | F57: 9.5
A58: 1 | B58: 11 | C58: 5 | D58: 7.2 | E58: 7.7 | F58: 7.6
A59: 1 | B59: 12 | C59: 1 | D59: 6.6 | E59: 6.8 | F59: 6.9
A60: 1 | B60: 12 | C60: 2 | D60: 7 | E60: 7.2 | F60: 7.2
A61: 1 | B61: 12 | C61: 3 | D61: 6.7 | E61: 7.1 | F61: 7
A62: 1 | B62: 12 | C62: 4 | D62: 6.8 | E62: 6.9 | F62: 6.6
A63: 1 | B63: 12 | C63: 5 | D63: 7.2 | E63: 9.6 | F63: 10.1
A64: 1 | B64: 13 | C64: 1 | D64: 6.9 | E64: 7.5 | F64: 7.6
A65: 1 | B65: 13 | C65: 2 | D65: 6.2 | E65: 7.4 | F65: 8.2
A66: 1 | B66: 13 | C66: 3 | D66: 6.8 | E66: 7 | F66: 7.9
A67: 1 | B67: 13 | C67: 4 | D67: 5.5 | E67: 5.4 | F67: 5.8
A68: 1 | B68: 13 | C68: 5 | D68: 4.6 | E68: 4.5 | F68: 4.6
A69: 1 | B69: 14 | C69: 1 | D69: 6.2 | E69: 8.2 | F69: 8.2
A70: 1 | B70: 14 | C70: 2 | D70: 4.5 | E70: 4.5 | F70: 4.7
A71: 1 | B71: 14 | C71: 3 | D71: 3.2 | E71: 3.8 | F71: 5.7
A72: 1 | B72: 14 | C72: 4 | D72: 3.9 | E72: 4.6 | F72: 4.6
A73: 1 | B73: 14 | C73: 5 | D73: 7.5 | E73: 9 | F73: 9.1
A74: 1 | B74: 15 | C74: 1 | D74: 7.1 | E74: 9.7 | F74: 9.9
A75: 1 | B75: 15 | C75: 2 | D75: 6.5 | E75: 7.9 | F75: 8.3
A76: 1 | B76: 15 | C76: 3 | D76: 4.4 | E76: 7.7 | F76: 8.1
A77: 1 | B77: 15 | C77: 4 | D77: 6.9 | E77: 10.7 | F77: 13.1
A78: 1 | B78: 15 | C78: 5 | D78: 6 | E78: 6.3
A79: 1 | B79: 16 | C79: 1 | D79: 6.5 | E79: 6.9 | F79: 7.2
A80: 1 | B80: 16 | C80: 2 | D80: 6 | E80: 6.7 | F80: 6.7
A81: 1 | B81: 16 | C81: 3 | D81: 7.7 | E81: 11.9 | F81: 15.3
A82: 1 | B82: 16 | C82: 4 | D82: 6.2 | E82: 9.9 | F82: 13.6
A83: 1 | B83: 16 | C83: 5 | D83: 5.3 | E83: 5.1 | F83: 5.5
A84: 1 | B84: 17 | C84: 1 | D84: 5 | E84: 4.8 | F84: 5.4
A85: 1 | B85: 17 | C85: 2 | D85: 6.1 | E85: 9.6 | F85: 13
A86: 1 | B86: 17 | C86: 3 | D86: 8.4 | E86: 14 | F86: 17.8
A87: 1 | B87: 17 | C87: 4 | D87: 7.5 | E87: 12.1 | F87: 15
A88: 1 | B88: 17 | C88: 5 | D88: 7.6 | E88: 10.4 | F88: 12.8
A89: 1 | B89: 18 | C89: 1 | D89: 7.3 | E89: 7.4 | F89: 8
A90: 1 | B90: 18 | C90: 2 | D90: 5.3 | E90: 5.2 | F90: 5.2
A91: 1 | B91: 18 | C91: 3 | D91: 7.9 | E91: 8.6
A92: 1 | B92: 18 | C92: 4 | D92: 7.1 | E92: 11.8 | F92: 14.9
A93: 1 | B93: 18 | C93: 5 | D93: 6.1 | E93: 4.9 | F93: 5.8
A94: 1 | B94: 19 | C94: 1 | D94: 4.9 | E94: 4.3 | F94: 4.8
A95: 1 | B95: 19 | C95: 2 | D95: 5.1 | E95: 5.4 | F95: 5
A96: 1 | B96: 19 | C96: 3 | D96: 4.4 | E96: 4.4 | F96: 4.5
A97: 1 | B97: 19 | C97: 4 | D97: 8.3 | E97: 11.9 | F97: 12.3
A98: 1 | B98: 19 | C98: 5 | D98: 6.8 | E98: 7.4 | F98: 7.1
A99: 1 | B99: 20 | C99: 1 | D99: 6.7 | E99: 6.9 | F99: 6.6
A100: 1 | B100: 20 | C100: 2 | D100: 6.9 | E100: 11.4 | F100: 15.1
A101: 1 | B101: 20 | C101: 3 | D101: 7.3 | E101: 12.3 | F101: 16
A102: 1 | B102: 20 | C102: 4 | D102: 7.4 | E102: 7.4 | F102: 7.8
A103: 1 | B103: 20 | C103: 5 | D103: 6.7 | E103: 7.1 | F103: 4.7
A104: 2 | B104: 1 | C104: 1 | D104: 6.5 | E104: 7.3 | F104: 7
A105: 2 | B105: 1 | C105: 2 | D105: 4.4 | E105: 4.4
A106: 2 | B106: 1 | C106: 3 | D106: 6.3 | E106: 8.2 | F106: 8.6
A107: 2 | B107: 1 | C107: 4 | D107: 6 | E107: 6.7 | F107: 6.8
A108: 2 | B108: 1 | C108: 5 | D108: 6.2 | E108: 7.2 | F108: 7.5
A109: 2 | B109: 2 | C109: 1 | D109: 6.1 | E109: 7.5 | F109: 7.7
A110: 2 | B110: 2 | C110: 2 | D110: 7.5 | E110: 10 | F110: 9.9
A111: 2 | B111: 2 | C111: 3 | D111: 7.7 | E111: 11.4 | F111: 13.5
A112: 2 | B112: 2 | C112: 4 | D112: 6.2 | E112: 6.4 | F112: 6.1
A113: 2 | B113: 2 | C113: 5 | D113: 6.6 | E113: 6.3 | F113: 6.4
A114: 2 | B114: 3 | C114: 1 | D114: 6.6 | E114: 6.6 | F114: 7.1
A115: 2 | B115: 3 | C115: 2 | D115: 6.7 | E115: 8.1 | F115: 8.2
A116: 2 | B116: 3 | C116: 3 | D116: 5.7 | E116: 5.6
A117: 2 | B117: 3 | C117: 4 | D117: 7.3 | E117: 7.1 | F117: 6.2
A118: 2 | B118: 3 | C118: 5 | D118: 7.4 | E118: 7.8
A119: 2 | B119: 4 | C119: 1 | D119: 7 | E119: 10.9 | F119: 11.6
A120: 2 | B120: 4 | C120: 2 | D120: 5 | E120: 5
A121: 2 | B121: 4 | C121: 3 | D121: 8.9 | E121: 14 | F121: 17.8
A122: 2 | B122: 4 | C122: 4 | D122: 7.8 | E122: 9.5 | F122: 9.7
A123: 2 | B123: 4 | C123: 5 | D123: 7.9 | E123: 9.9 | F123: 10
A124: 2 | B124: 5 | C124: 1 | D124: 6.1
A125: 2 | B125: 5 | C125: 2 | D125: 6.5 | E125: 6.7 | F125: 6.9
A126: 2 | B126: 5 | C126: 3 | D126: 5.8 | E126: 5.7 | F126: 5.6
A127: 2 | B127: 5 | C127: 4 | D127: 5.1 | E127: 5.5 | F127: 5.4
A128: 2 | B128: 5 | C128: 5 | D128: 5.8 | E128: 6.6 | F128: 6.4
A129: 2 | B129: 6 | C129: 1 | D129: 5.9 | E129: 5.8 | F129: 5.9
A130: 2 | B130: 6 | C130: 2 | D130: 8.2 | E130: 14.1 | F130: 16.9
A131: 2 | B131: 6 | C131: 3 | D131: 5.2 | E131: 5.6 | F131: 5.4
A132: 2 | B132: 6 | C132: 4 | D132: 8.3 | E132: 10.1 | F132: 10.1
A133: 2 | B133: 6 | C133: 5 | D133: 7.1 | E133: 8.1 | F133: 8.5
A134: 2 | B134: 7 | C134: 1 | D134: 6.2 | E134: 6.3 | F134: 6.4
A135: 2 | B135: 7 | C135: 2 | D135: 6.4 | E135: 6.6 | F135: 6.8
A136: 2 | B136: 7 | C136: 3 | D136: 5.3 | E136: 5.4 | F136: 5.4
A137: 2 | B137: 7 | C137: 4 | D137: 4.9 | E137: 4.9
A138: 2 | B138: 7 | C138: 5 | D138: 7.5 | E138: 10.1 | F138: 10.4
A139: 2 | B139: 8 | C139: 1 | D139: 6.8 | E139: 10.7 | F139: 11
A140: 2 | B140: 8 | C140: 2 | D140: 6.3 | E140: 10.2 | F140: 13.5
A141: 2 | B141: 8 | C141: 3 | D141: 6 | E141: 6.6 | F141: 7.1
A142: 2 | B142: 8 | C142: 4 | D142: 7 | E142: 9.9 | F142: 14.7
A143: 2 | B143: 8 | C143: 5 | D143: 7.7 | E143: 10.6 | F143: 10.8
A144: 2 | B144: 9 | C144: 1 | D144: 6.7 | E144: 7 | F144: 8.7
A145: 2 | B145: 9 | C145: 2 | D145: 7 | E145: 9.8 | F145: 7
A146: 2 | B146: 9 | C146: 3 | D146: 8 | E146: 8.5 | F146: 8.7
A147: 2 | B147: 9 | C147: 4 | D147: 8 | E147: 8.8 | F147: 9
A148: 2 | B148: 9 | C148: 5 | D148: 7.8 | E148: 11.4 | F148: 14.3
A149: 2 | B149: 10 | C149: 1 | D149: 8.6 | E149: 12.9 | F149: 16.4
A150: 2 | B150: 10 | C150: 2 | D150: 5.2 | E150: 5.1 | F150: 6.1
A151: 2 | B151: 10 | C151: 3 | D151: 6.2 | E151: 5.1 | F151: 5.3
A152: 2 | B152: 10 | C152: 4 | D152: 4.5 | E152: 4.6 | F152: 4.5
A153: 2 | B153: 10 | C153: 5 | D153: 8.7 | E153: 13.4 | F153: 16.6
A154: 2 | B154: 11 | C154: 1 | D154: 7.4 | E154: 11.6 | F154: 14.8
A155: 2 | B155: 11 | C155: 2 | D155: 7.5 | E155: 11.5 | F155: 4.2
A156: 2 | B156: 11 | C156: 3 | D156: 6.1 | E156: 4.9 | F156: 5.1
A157: 2 | B157: 11 | C157: 4 | D157: 4.7 | E157: 4.2
A158: 2 | B158: 11 | C158: 5 | D158: 7.8 | E158: 11.2 | F158: 12.1
A159: 2 | B159: 12 | C159: 1 | D159: 6.5 | E159: 10.9 | F159: 14.1
A160: 2 | B160: 12 | C160: 2 | D160: 5.1 | E160: 5.2 | F160: 5.2
A161: 2 | B161: 12 | C161: 3 | D161: 6.3 | E161: 8.2 | F161: 8.3
A162: 2 | B162: 12 | C162: 4 | D162: 8.1 | E162: 12.5 | F162: 16.2
A163: 2 | B163: 12 | C163: 5 | D163: 7.1 | E163: 11.8 | F163: 15.4
A164: 2 | B164: 13 | C164: 1 | D164: 6.5 | E164: 7.3 | F164: 7.3
A165: 2 | B165: 13 | C165: 2 | D165: 8.2 | E165: 12.4 | F165: 15.7
A166: 2 | B166: 13 | C166: 3 | D166: 7.2 | E166: 10.1 | F166: 10.1
A167: 2 | B167: 13 | C167: 4 | D167: 6.7 | E167: 9.7 | F167: 9.9
A168: 2 | B168: 13 | C168: 5 | D168: 5.6 | E168: 5.8 | F168: 5.6
A169: 2 | B169: 14 | C169: 1 | D169: 7.8 | E169: 12.2 | F169: 15.7
A170: 2 | B170: 14 | C170: 2 | D170: 6.8 | E170: 10.5 | F170: 13.7
A171: 2 | B171: 14 | C171: 3 | D171: 5 | E171: 5.1 | F171: 5.1
A172: 2 | B172: 14 | C172: 4 | D172: 7.6 | E172: 12.5 | F172: 16.4
A173: 2 | B173: 14 | C173: 5 | D173: 6.2 | E173: 6 | F173: 5.9
A174: 2 | B174: 15 | C174: 1 | D174: 6.3 | E174: 7.2
A175: 2 | B175: 15 | C175: 2 | D175: 6.3 | E175: 4.7 | F175: 6.7
A176: 2 | B176: 15 | C176: 3 | D176: 4.7 | E176: 6.5 | F176: 4.4
A177: 2 | B177: 15 | C177: 4 | D177: 8.2 | E177: 12.9 | F177: 16.2
A178: 2 | B178: 15 | C178: 5 | D178: 3.7 | E178: 4
A179: 2 | B179: 16 | C179: 1 | D179: 4.1
A180: 2 | B180: 16 | C180: 2 | D180: 7.4 | E180: 7.9 | F180: 8.2
A181: 2 | B181: 16 | C181: 3 | D181: 8.3 | E181: 12.9 | F181: 16.6
A182: 2 | B182: 16 | C182: 4 | D182: 7 | E182: 7.3 | F182: 7.6
A183: 2 | B183: 16 | C183: 5 | D183: 6.8 | E183: 11 | F183: 14.2
A184: 2 | B184: 17 | C184: 1 | D184: 4.1 | E184: 4.2
A185: 2 | B185: 17 | C185: 2 | D185: 5.5 | E185: 5.7
A186: 2 | B186: 17 | C186: 3 | D186: 7.6 | E186: 10.8 | F186: 14.2
A187: 2 | B187: 17 | C187: 4 | D187: 5.9 | E187: 6.6 | F187: 7.1
A188: 2 | B188: 17 | C188: 5 | D188: 8.6 | E188: 12.9 | F188: 14.8
A189: 2 | B189: 18 | C189: 1 | D189: 5.9 | E189: 5.6 | F189: 5.7
A190: 2 | B190: 18 | C190: 2 | D190: 5.6 | E190: 5.5 | F190: 5.6
A191: 2 | B191: 18 | C191: 3 | D191: 7.3 | E191: 10.2 | F191: 11
A192: 2 | B192: 18 | C192: 4 | D192: 5 | E192: 5.1 | F192: 5.4
A193: 2 | B193: 18 | C193: 5 | D193: 7.1 | E193: 11 | F193: 9.1
A194: 2 | B194: 19 | C194: 1 | D194: 6.8 | E194: 10.1 | F194: 8
A195: 2 | B195: 19 | C195: 2 | D195: 4.5 | E195: 6.3 | F195: 4.7
A196: 2 | B196: 19 | C196: 3 | D196: 4.5 | E196: 5.1 | F196: 4.7
A197: 2 | B197: 19 | C197: 4 | D197: 6.3 | E197: 7 | F197: 7.6
A198: 2 | B198: 19 | C198: 5 | D198: 8.8 | E198: 11.5 | F198: 11.4
A199: 2 | B199: 20 | C199: 1 | D199: 7.5 | E199: 9.9 | F199: 10.3
A200: 2 | B200: 20 | C200: 2 | D200: 6.3 | E200: 6.6 | F200: 6.6
... 314 more rows

Sheet Directions
A1: Predicting Fruitset Directions
B2: This model was developed by Dr. Duane Greene, UMASS and this spreadsheet was designed by Philip Schwallier, MSU.
B3: This model can be downloaded at:
A4: 1 | B4: Apples.msu.edu
A5: 2 | B5: http://www.glexpo.com/summaries/2013summaries
A6: 3 | B6: http://extension.umass.edu/fruitadvisor/resources/clements-corner
B7: This model will help predict fruitset early before the thinning window closes allowing another chance to chemically thin.
B8: You must have you Macros turned on.
A9: Select and Number Clusters and Fruitlets
B10: At bloom select and mark at lease 75 clusters 15 clusters on 5 trees. These should be representative flower clusters in a block you want to predict fruitset.
B11: Number the fruits in each cluster with a number or dots (1 dot =1, 2 dots=2, etc.) with a sharpie marker.
B12: Start with the King fruitlet and number the fruit clockwise starting at the north fruitlet.
A13: Setup Sheet (yellow areas)
B14: Enter your farm name.
B15: Enter the block name.
B16: Enter the dates of your measurements in sample.
B17: Enter the number of clusters you are measuring.
B18: Enter what you determine to be the target number of fruit for the measured canopy area.
B19: All of these entries will be automatically copied to the other appropriate cells.
A20: Input Sheet
A21: Enter Fruitlet Diameters
B22: The Input Sheet will accept direct input of diameters or they can be pasted in from another spreadsheet.
B23: The Tree, Cluster and Fruitlet number is not inportant, but only as a reference # for your marking system.
B24: The Cluster and Frutilet number is copied to the staging sheet and not used anywhere else.
A26: Summary Sheet
B27: Move to the summary sheet after entering your diameters.
B28: Click on the button: Calculate Fruitlet Set
B29: This will start the macros:
B30: 1. The macro will copy the diameters from the staging sheet to the Diameter and Count sheets
B31: 2. The macro will sort the diameters in descending order (Diameter Sheet).
B32: 3. The macro will sort the diameter growth in descending order (Count Sheet).
B33: 4. The macro will move back to the Summary Sheet.
A34: Summary Sheet
B35: You can print the Summary Sheet by clicking button: Print This Page.
A36: Errors
B37: The program will not run correctly if a " " (space) is entered into the input page.
A38: Staging, Diameter, Count Sheet
B39: These sheets are used by the program to copy, check, calculate and sort data, do not change these sheets.
